Workbook

Sheet Linear
B1: Building Linear Approximations
B2: to the Exponential Function
B4: This graphing utility lets you try to
B5: build the best linear approximation
C6: to the exponential function
D7: y = ex
C8: centered about x = 0
A11: Enter the interval for x:
C12: xMin = | D12: -1
C13: xMax = | D13: 1
A16: In the linear approximation ex » a0 + b0x
A18: What is the constant coefficient a0 (0 to 2)?
C19: 100 | F19: =(C19-0)/100 -> 1 | I19: The largest deviation at 200 evenly spaced points is | O19: =MAX(Calcs!E3:E203) -> 0.7182818285
A21: What is the linear coefficient b0 (0 to 2)? | I21: The sum of the squares of the 200 deviations is | O21: =Calcs!F205 -> 12.4485301
C22: 100 | F22: =(C22-0)/100 -> 1
A24: Your linear polynomial is y = | E24: =TEXT(aa00,"0.00")&" + " &TEXT(bb00,"0.00")&"x " -> 1.00 + 1.00x
A29: Click each item below for suggestions and investigations
C30: Item 1
C31: Item 2
C32: Item 3
C33: Item 4

Sheet Quad
B1: Building Quadratic Approximations
B2: to the Exponential Function
B4: This graphing utility lets you try to
B5: build the best quadratic approximation
C6: to the exponential function
D7: y = ex
C8: centered about x = 0
A11: Enter the interval for x:
C12: xMin = | D12: -1
C13: xMax = | D13: 1
A15: In the quadratic approximation ex » a0 + b0x + c0x2
A17: What is the constant coefficient a0 (0 to 2)?
C18: 100 | F18: =(C18-0)/100 -> 1 | I18: The largest deviation at 200 evenly spaced points is | O18: =MAX(Calcs!L3:L203) -> 0.2182818285
A20: What is the linear coefficient b0 (0 to 2)? | I20: The sum of the squares of the 200 deviations is | O20: =Calcs!M205 -> 0.9315516376
C21: 100 | F21: =(C21-0)/100 -> 1
A23: What is the quadratic coefficient c0 (0 to 2)?
C24: 50 | F24: =(C24-0)/100 -> 0.5
A26: Your quadratic polynomial is y = | E26: =TEXT(a0,"0.00")&" +" &TEXT(b0,"0.00")&"x + "&TEXT(c0,"0.00")&"x^2" -> 1.00 +1.00x + 0.50x^2
A31: Click each item below for suggestions and investigations
D32: Item 1
D33: Item 2
D34: Item 3
D35: Item 4
D36: Item 5

Sheet Cubic
B1: Building Cubic Approximations
B2: to the Exponential Function
B4: This graphing utility lets you try to
B5: build the best cubic approximation
B6: to the exponential function
D7: y = ex
C8: centered about x = 0
A11: Enter the interval for x:
C12: xMin = | D12: -1
C13: xMax = | D13: 1
A16: In the cubic approximation ex » a0 + b0x + c0x2 + d0x3
A18: What is the constant coefficient a0 (0 to 2)?
C19: 100 | F19: =(C19-0)/100 -> 1.00 | I19: The largest deviation at 200 evenly spaced points is | O19: =MAX(Calcs!S3:S203) -> 0.04828182846
A21: What is the linear coefficient b0 (0 to 2)? | I21: The sum of the squares of the 200 deviations is | O21: =Calcs!T205 -> 0.04302927975
C22: 100 | F22: =(C22-0)/100 -> 1.00
A24: What is the quadratic coefficient c0 (0 to 2)?
C25: 50 | F25: =(C25-0)/100 -> 0.50
A27: What is the cubic coefficient d0 (0 to 1)?
C28: 17 | F28: =(C28-0)/100 -> 0.17
A30: Your cubic polynomial is y = | E30: =TEXT(a00,"0.00")&" + "&TEXT(b00,"0.00")&"x + "&TEXT(c00,"0.00")&"x^2 + "&TEXT(d00,"0.00")&"x^3" -> 1.00 + 1.00x + 0.50x^2 + 0.17x^3
A35: Click each item below for suggestions and investigations
D36: Item 1
D37: Item 2
D38: Item 3
D39: Item 4
D40: Item 5

Sheet Quartic
B1: Building Quartic Approximations
B2: to the Exponential Function
B4: This graphing utility lets you try to
B5: build the best quartic approximation
B6: to the exponential function
D7: y = ex
C8: centered about x = 0
A11: Enter the interval for x:
C12: xMin = | D12: -1
C13: xMax = | D13: 1
A16: In the quartic approximation ex » a0 + b0x + c0x2 + d0x3 + e0x4
A18: What is the constant coefficient a0 (0 to 2)?
C19: 100 | F19: =(C19-0)/100 -> 1.00 | I19: The largest deviation at 200 evenly spaced points is | O19: =MAX(Calcs!Z3:Z203) -> 0.008281828459
A21: What is the linear coefficient b0 (0 to 2)? | I21: The sum of the squares of the 200 deviations is | O21: =Calcs!AA205 -> 0.0005882861634
C22: 100 | F22: =(C22-0)/100 -> 1.00
A24: What is the quadratic coefficient c0 (0 to 2)?
C25: 50 | F25: =(C25-0)/100 -> 0.50
A27: What is the cubic coefficient d0 (0 to 1)?
C28: 17 | F28: =(C28-0)/100 -> 0.17
A30: What is the quartic coefficient e0 (0 to 1)?
C31: 4 | F31: =(C31-0)/100 -> 0.04
A33: Your quartic polynomial is y = | E33: =TEXT(a000,"0.00")&" + "&TEXT(b000,"0.00")&"x + "&TEXT(c000,"0.00")&"x^2 + "&TEXT(d000,"0.00")&"x^3 +"&TEXT(e000,"0.00")&"x^4" -> 1.00 + 1.00x + 0.50x^2 + 0.17x^3 +0.04x^4
A38: Click each item below for suggestions and investigations
C39: Item 1
C40: Item 2
C41: Item 3
C42: Item 4
C43: Item 5

Sheet Quintic
B1: Building Quintic Approximations
B2: to the Exponential Function
B4: This graphing utility lets you try to
B5: build the best quintic approximation
B6: to the exponential function
D7: y = ex
C8: centered about x = 0
A11: Enter the interval for x:
C12: xMin = | D12: -1
C13: xMax = | D13: 1
A16: In the quintic approximation ex » a0 + b0x + c0x2 + d0x3 + e0x4
A18: What is the constant coefficient a0 (0 to 2)?
C19: 100 | F19: =(C19-0)/100 -> 1.00 | I19: The largest deviation at 200 evenly spaced points is | O19: =MAX(Calcs!AF3:AF203) -> 0.7697181715
A21: What is the linear coefficient b0 (0 to 2)? | I21: The sum of the squares of the 200 deviations is | O21: =Calcs!AH205 -> 7.740935424
C22: 100 | F22: =(C22-0)/100 -> 1.00
A24: What is the quadratic coefficient c0 (0 to 2)?
C25: 50 | F25: =(C25-0)/100 -> 0.50
A27: What is the cubic coefficient d0 (0 to 1)?
C28: 97 | F28: =(C28-0)/200 -> 0.49
A30: What is the quartic coefficient e0 (0 to 1)?
C31: 99 | F31: =(C31-0)/200 -> 0.50
A33: What is the quintic coefficient f0 (0 to 0.2)?
C34: 40 | F34: =(C34-0)/5000 -> 0.0080
A36: Your quintic polynomial is y = | E36: =TEXT(a0000,"0.00")&" + "&TEXT(b0000,"0.00")&"x + "&TEXT(c0000,"0.00")&"x^2 + "&TEXT(d0000,"0.00")&"x^3 + "&TEXT(e0000,"0.00")&"x^4 + "&TEXT(f0000,"0.0000")&"x^5 " -> 1.00 + 1.00x + 0.50x^2 + 0.49x^3 + 0.50x^4 + 0.0080x^5
A41: Click each item below for suggestions and investigations
C42: Item 1
C43: Item 2
C44: Item 3
C45: Item 4
C46: Item 5
C47: Item 6

Sheet Calcs
B1: Linear | I1: Quadatic | P1: Cubic | W1: Quartic | AD1: Quintic
A2: x | B2: e^x | C2: P1(x) | D2: Difference | E2: ABS | F2: Squares | H2: x | I2: e^x | J2: P2(x) | K2: Difference | L2: ABS | M2: Squares | O2: x | P2: e^x | Q2: P3(x) | R2: Difference | S2: ABS | T2: Squares | V2: x | W2: e^x | X2: P4(x) | Y2: Difference | Z2: ABS | AA2: Squares | AC2: x | AD2: e^x | AE2: P5(x) | AF2: Difference | AG2: ABS | AH2: Squares
A3: =aa0 -> -1 | B3: =EXP(A3) -> 0.36788 | C3: =aa00+bb00*A3 -> 0.00000 | D3: =C3-B3 -> -0.36788 | E3: =ABS(D3) -> 0.36788 | F3: =D3^2 -> 0.1353 | H3: =a -> -1 | I3: =EXP(H3) -> 0.36788 | J3: =a0+b0*H3+c0*H3^2 -> 0.50000 | K3: =J3-I3 -> 0.13212 | L3: =ABS(K3) -> 0.13212 | M3: =K3^2 -> 0.0175 | O3: =aa -> -1 | P3: =EXP(O3) -> 0.36788 | Q3: =a00+b00*O3+c00*O3^2+d00*A3^3 -> 0.33000 | R3: =Q3-P3 -> -0.03788 | S3: =ABS(R3) -> 0.03788 | T3: =R3^2 -> 0.0014 | V3: =aaa -> -1 | W3: =EXP(V3) -> 0.36788 | X3: =a000+b000*V3+c000*V3^2+d000*O3^3+e000*O3^4 -> 0.37000 | Y3: =X3-W3 -> 0.00212 | Z3: =ABS(Y3) -> 0.00212 | AA3: =Y3^2 -> 0.0000 | AC3: =aaaa -> -1 | AD3: =EXP(AC3) -> 0.36788 | AE3: =a0000+b0000*AC3+c0000*AC3^2+d0000*AC3^3+e0000*AC3^4+f0000*AC3^5 -> 0.50200 | AF3: =AE3-AD3 -> 0.13412 | AG3: =ABS(AF3) -> 0.13412 | AH3: =AF3^2 -> 0.0180
A4: =A3+(bb0-aa0)/200 -> -0.99 | B4: =EXP(A4) -> 0.37158 | C4: 0.01000 | D4: =C4-B4 -> -0.36158 | E4: =ABS(D4) -> 0.36158 | F4: =D4^2 -> 0.1307 | H4: =H3+(b-a)/200 -> -0.99 | I4: =EXP(H4) -> 0.37158 | J4: 0.50005 | K4: =J4-I4 -> 0.12847 | L4: =ABS(K4) -> 0.12847 | M4: =K4^2 -> 0.0165 | O4: =O3+(bb-aa)/200 -> -0.99 | P4: =EXP(O4) -> 0.37158 | Q4: 0.33510 | R4: =Q4-P4 -> -0.03648 | S4: =ABS(R4) -> 0.03648 | T4: =R4^2 -> 0.0013 | V4: =V3+(bbb-aaa)/200 -> -0.99 | W4: =EXP(V4) -> 0.37158 | X4: 0.37352 | Y4: =X4-W4 -> 0.00195 | Z4: =ABS(Y4) -> 0.00195 | AA4: =Y4^2 -> 0.0000 | AC4: =AC3+(bbbb-aaaa)/200 -> -0.99 | AD4: =EXP(AC4) -> 0.37158 | AE4: 0.49734 | AF4: =AE4-AD4 -> 0.12577 | AG4: =ABS(AF4) -> 0.12577 | AH4: =AF4^2 -> 0.0158
A5: -0.98 | B5: 0.37531 | C5: 0.02000 | D5: -0.35531 | E5: 0.35531 | F5: 0.1262 | H5: -0.98 | I5: 0.37531 | J5: 0.50020 | K5: 0.12489 | L5: 0.12489 | M5: 0.0156 | O5: -0.98 | P5: 0.37531 | Q5: 0.34020 | R5: -0.03511 | S5: 0.03511 | T5: 0.0012 | V5: -0.98 | W5: 0.37531 | X5: 0.37709 | Y5: 0.00178 | Z5: 0.00178 | AA5: 0.0000 | AC5: -0.98 | AD5: 0.37531 | AE5: 0.49306 | AF5: 0.11775 | AG5: 0.11775 | AH5: 0.0139
A6: -0.97 | B6: 0.37908 | C6: 0.03000 | D6: -0.34908 | E6: 0.34908 | F6: 0.1219 | H6: -0.97 | I6: 0.37908 | J6: 0.50045 | K6: 0.12137 | L6: 0.12137 | M6: 0.0147 | O6: -0.97 | P6: 0.37908 | Q6: 0.34530 | R6: -0.03379 | S6: 0.03379 | T6: 0.0011 | V6: -0.97 | W6: 0.37908 | X6: 0.38071 | Y6: 0.00162 | Z6: 0.00162 | AA6: 0.0000 | AC6: -0.97 | AD6: 0.37908 | AE6: 0.48915 | AF6: 0.11007 | AG6: 0.11007 | AH6: 0.0121
A7: -0.96 | B7: 0.38289 | C7: 0.04000 | D7: -0.34289 | E7: 0.34289 | F7: 0.1176 | H7: -0.96 | I7: 0.38289 | J7: 0.50080 | K7: 0.11791 | L7: 0.11791 | M7: 0.0139 | O7: -0.96 | P7: 0.38289 | Q7: 0.35039 | R7: -0.03250 | S7: 0.03250 | T7: 0.0011 | V7: -0.96 | W7: 0.38289 | X7: 0.38437 | Y7: 0.00148 | Z7: 0.00148 | AA7: 0.0000 | AC7: -0.96 | AD7: 0.38289 | AE7: 0.48561 | AF7: 0.10271 | AG7: 0.10271 | AH7: 0.0106
A8: -0.95 | B8: 0.38674 | C8: 0.05000 | D8: -0.33674 | E8: 0.33674 | F8: 0.1134 | H8: -0.95 | I8: 0.38674 | J8: 0.50125 | K8: 0.11451 | L8: 0.11451 | M8: 0.0131 | O8: -0.95 | P8: 0.38674 | Q8: 0.35550 | R8: -0.03124 | S8: 0.03124 | T8: 0.0010 | V8: -0.95 | W8: 0.38674 | X8: 0.38808 | Y8: 0.00134 | Z8: 0.00134 | AA8: 0.0000 | AC8: -0.95 | AD8: 0.38674 | AE8: 0.48241 | AF8: 0.09567 | AG8: 0.09567 | AH8: 0.0092
A9: -0.94 | B9: 0.39063 | C9: 0.06000 | D9: -0.33063 | E9: 0.33063 | F9: 0.1093 | H9: -0.94 | I9: 0.39063 | J9: 0.50180 | K9: 0.11117 | L9: 0.11117 | M9: 0.0124 | O9: -0.94 | P9: 0.39063 | Q9: 0.36060 | R9: -0.03003 | S9: 0.03003 | T9: 0.0009 | V9: -0.94 | W9: 0.39063 | X9: 0.39183 | Y9: 0.00120 | Z9: 0.00120 | AA9: 0.0000 | AC9: -0.94 | AD9: 0.39063 | AE9: 0.47957 | AF9: 0.08894 | AG9: 0.08894 | AH9: 0.0079
A10: -0.93 | B10: 0.39455 | C10: 0.07000 | D10: -0.32455 | E10: 0.32455 | F10: 0.1053 | H10: -0.93 | I10: 0.39455 | J10: 0.50245 | K10: 0.10790 | L10: 0.10790 | M10: 0.0116 | O10: -0.93 | P10: 0.39455 | Q10: 0.36571 | R10: -0.02884 | S10: 0.02884 | T10: 0.0008 | V10: -0.93 | W10: 0.39455 | X10: 0.39563 | Y10: 0.00108 | Z10: 0.00108 | AA10: 0.0000 | AC10: -0.93 | AD10: 0.39455 | AE10: 0.47706 | AF10: 0.08250 | AG10: 0.08250 | AH10: 0.0068
A11: -0.92 | B11: 0.39852 | C11: 0.08000 | D11: -0.31852 | E11: 0.31852 | F11: 0.1015 | H11: -0.92 | I11: 0.39852 | J11: 0.50320 | K11: 0.10468 | L11: 0.10468 | M11: 0.0110 | O11: -0.92 | P11: 0.39852 | Q11: 0.37082 | R11: -0.02770 | S11: 0.02770 | T11: 0.0008 | V11: -0.92 | W11: 0.39852 | X11: 0.39948 | Y11: 0.00096 | Z11: 0.00096 | AA11: 0.0000 | AC11: -0.92 | AD11: 0.39852 | AE11: 0.47488 | AF11: 0.07636 | AG11: 0.07636 | AH11: 0.0058
A12: -0.91 | B12: 0.40252 | C12: 0.09000 | D12: -0.31252 | E12: 0.31252 | F12: 0.0977 | H12: -0.91 | I12: 0.40252 | J12: 0.50405 | K12: 0.10153 | L12: 0.10153 | M12: 0.0103 | O12: -0.91 | P12: 0.40252 | Q12: 0.37594 | R12: -0.02658 | S12: 0.02658 | T12: 0.0007 | V12: -0.91 | W12: 0.40252 | X12: 0.40337 | Y12: 0.00085 | Z12: 0.00085 | AA12: 0.0000 | AC12: -0.91 | AD12: 0.40252 | AE12: 0.47302 | AF12: 0.07050 | AG12: 0.07050 | AH12: 0.0050
A13: -0.9 | B13: 0.40657 | C13: 0.10000 | D13: -0.30657 | E13: 0.30657 | F13: 0.0940 | H13: -0.9 | I13: 0.40657 | J13: 0.50500 | K13: 0.09843 | L13: 0.09843 | M13: 0.0097 | O13: -0.9 | P13: 0.40657 | Q13: 0.38107 | R13: -0.02550 | S13: 0.02550 | T13: 0.0007 | V13: -0.9 | W13: 0.40657 | X13: 0.40731 | Y13: 0.00074 | Z13: 0.00074 | AA13: 0.0000 | AC13: -0.9 | AD13: 0.40657 | AE13: 0.47148 | AF13: 0.06491 | AG13: 0.06491 | AH13: 0.0042
A14: -0.89 | B14: 0.41066 | C14: 0.11000 | D14: -0.30066 | E14: 0.30066 | F14: 0.0904 | H14: -0.89 | I14: 0.41066 | J14: 0.50605 | K14: 0.09539 | L14: 0.09539 | M14: 0.0091 | O14: -0.89 | P14: 0.41066 | Q14: 0.38621 | R14: -0.02445 | S14: 0.02445 | T14: 0.0006 | V14: -0.89 | W14: 0.41066 | X14: 0.41130 | Y14: 0.00065 | Z14: 0.00065 | AA14: 0.0000 | AC14: -0.89 | AD14: 0.41066 | AE14: 0.47025 | AF14: 0.05959 | AG14: 0.05959 | AH14: 0.0036
A15: -0.88 | B15: 0.41478 | C15: 0.12000 | D15: -0.29478 | E15: 0.29478 | F15: 0.0869 | H15: -0.88 | I15: 0.41478 | J15: 0.50720 | K15: 0.09242 | L15: 0.09242 | M15: 0.0085 | O15: -0.88 | P15: 0.41478 | Q15: 0.39135 | R15: -0.02343 | S15: 0.02343 | T15: 0.0005 | V15: -0.88 | W15: 0.41478 | X15: 0.41534 | Y15: 0.00055 | Z15: 0.00055 | AA15: 0.0000 | AC15: -0.88 | AD15: 0.41478 | AE15: 0.46931 | AF15: 0.05453 | AG15: 0.05453 | AH15: 0.0030
A16: -0.87 | B16: 0.41895 | C16: 0.13000 | D16: -0.28895 | E16: 0.28895 | F16: 0.0835 | H16: -0.87 | I16: 0.41895 | J16: 0.50845 | K16: 0.08950 | L16: 0.08950 | M16: 0.0080 | O16: -0.87 | P16: 0.41895 | Q16: 0.39650 | R16: -0.02245 | S16: 0.02245 | T16: 0.0005 | V16: -0.87 | W16: 0.41895 | X16: 0.41942 | Y16: 0.00047 | Z16: 0.00047 | AA16: 0.0000 | AC16: -0.87 | AD16: 0.41895 | AE16: 0.46867 | AF16: 0.04972 | AG16: 0.04972 | AH16: 0.0025
A17: -0.86 | B17: 0.42316 | C17: 0.14000 | D17: -0.28316 | E17: 0.28316 | F17: 0.0802 | H17: -0.86 | I17: 0.42316 | J17: 0.50980 | K17: 0.08664 | L17: 0.08664 | M17: 0.0075 | O17: -0.86 | P17: 0.42316 | Q17: 0.40167 | R17: -0.02149 | S17: 0.02149 | T17: 0.0005 | V17: -0.86 | W17: 0.42316 | X17: 0.42355 | Y17: 0.00039 | Z17: 0.00039 | AA17: 0.0000 | AC17: -0.86 | AD17: 0.42316 | AE17: 0.46832 | AF17: 0.04516 | AG17: 0.04516 | AH17: 0.0020
A18: -0.85 | B18: 0.42741 | C18: 0.15000 | D18: -0.27741 | E18: 0.27741 | F18: 0.0770 | H18: -0.85 | I18: 0.42741 | J18: 0.51125 | K18: 0.08384 | L18: 0.08384 | M18: 0.0070 | O18: -0.85 | P18: 0.42741 | Q18: 0.40685 | R18: -0.02057 | S18: 0.02057 | T18: 0.0004 | V18: -0.85 | W18: 0.42741 | X18: 0.42773 | Y18: 0.00031 | Z18: 0.00031 | AA18: 0.0000 | AC18: -0.85 | AD18: 0.42741 | AE18: 0.46824 | AF18: 0.04083 | AG18: 0.04083 | AH18: 0.0017
A19: -0.84 | B19: 0.43171 | C19: 0.16000 | D19: -0.27171 | E19: 0.27171 | F19: 0.0738 | H19: -0.84 | I19: 0.43171 | J19: 0.51280 | K19: 0.08109 | L19: 0.08109 | M19: 0.0066 | O19: -0.84 | P19: 0.43171 | Q19: 0.41204 | R19: -0.01967 | S19: 0.01967 | T19: 0.0004 | V19: -0.84 | W19: 0.43171 | X19: 0.43196 | Y19: 0.00024 | Z19: 0.00024 | AA19: 0.0000 | AC19: -0.84 | AD19: 0.43171 | AE19: 0.46844 | AF19: 0.03673 | AG19: 0.03673 | AH19: 0.0013
A20: -0.83 | B20: 0.43605 | C20: 0.17000 | D20: -0.26605 | E20: 0.26605 | F20: 0.0708 | H20: -0.83 | I20: 0.43605 | J20: 0.51445 | K20: 0.07840 | L20: 0.07840 | M20: 0.0061 | O20: -0.83 | P20: 0.43605 | Q20: 0.41725 | R20: -0.01880 | S20: 0.01880 | T20: 0.0004 | V20: -0.83 | W20: 0.43605 | X20: 0.43623 | Y20: 0.00018 | Z20: 0.00018 | AA20: 0.0000 | AC20: -0.83 | AD20: 0.43605 | AE20: 0.46890 | AF20: 0.03285 | AG20: 0.03285 | AH20: 0.0011
A21: -0.82 | B21: 0.44043 | C21: 0.18000 | D21: -0.26043 | E21: 0.26043 | F21: 0.0678 | H21: -0.82 | I21: 0.44043 | J21: 0.51620 | K21: 0.07577 | L21: 0.07577 | M21: 0.0057 | O21: -0.82 | P21: 0.44043 | Q21: 0.42247 | R21: -0.01796 | S21: 0.01796 | T21: 0.0003 | V21: -0.82 | W21: 0.44043 | X21: 0.44055 | Y21: 0.00012 | Z21: 0.00012 | AA21: 0.0000 | AC21: -0.82 | AD21: 0.44043 | AE21: 0.46962 | AF21: 0.02919 | AG21: 0.02919 | AH21: 0.0009
A22: -0.81 | B22: 0.44486 | C22: 0.19000 | D22: -0.25486 | E22: 0.25486 | F22: 0.0650 | H22: -0.81 | I22: 0.44486 | J22: 0.51805 | K22: 0.07319 | L22: 0.07319 | M22: 0.0054 | O22: -0.81 | P22: 0.44486 | Q22: 0.42771 | R22: -0.01715 | S22: 0.01715 | T22: 0.0003 | V22: -0.81 | W22: 0.44486 | X22: 0.44492 | Y22: 0.00007 | Z22: 0.00007 | AA22: 0.0000 | AC22: -0.81 | AD22: 0.44486 | AE22: 0.47059 | AF22: 0.02573 | AG22: 0.02573 | AH22: 0.0007
A23: -0.8 | B23: 0.44933 | C23: 0.20000 | D23: -0.24933 | E23: 0.24933 | F23: 0.0622 | H23: -0.8 | I23: 0.44933 | J23: 0.52000 | K23: 0.07067 | L23: 0.07067 | M23: 0.0050 | O23: -0.8 | P23: 0.44933 | Q23: 0.43296 | R23: -0.01637 | S23: 0.01637 | T23: 0.0003 | V23: -0.8 | W23: 0.44933 | X23: 0.44934 | Y23: 0.00002 | Z23: 0.00002 | AA23: 0.0000 | AC23: -0.8 | AD23: 0.44933 | AE23: 0.47181 | AF23: 0.02248 | AG23: 0.02248 | AH23: 0.0005
A24: -0.79 | B24: 0.45384 | C24: 0.21000 | D24: -0.24384 | E24: 0.24384 | F24: 0.0595 | H24: -0.79 | I24: 0.45384 | J24: 0.52205 | K24: 0.06821 | L24: 0.06821 | M24: 0.0047 | O24: -0.79 | P24: 0.45384 | Q24: 0.43823 | R24: -0.01561 | S24: 0.01561 | T24: 0.0002 | V24: -0.79 | W24: 0.45384 | X24: 0.45381 | Y24: -0.00003 | Z24: 0.00003 | AA24: 0.0000 | AC24: -0.79 | AD24: 0.45384 | AE24: 0.47327 | AF24: 0.01942 | AG24: 0.01942 | AH24: 0.0004
A25: -0.78 | B25: 0.45841 | C25: 0.22000 | D25: -0.23841 | E25: 0.23841 | F25: 0.0568 | H25: -0.78 | I25: 0.45841 | J25: 0.52420 | K25: 0.06579 | L25: 0.06579 | M25: 0.0043 | O25: -0.78 | P25: 0.45841 | Q25: 0.44353 | R25: -0.01488 | S25: 0.01488 | T25: 0.0002 | V25: -0.78 | W25: 0.45841 | X25: 0.45833 | Y25: -0.00007 | Z25: 0.00007 | AA25: 0.0000 | AC25: -0.78 | AD25: 0.45841 | AE25: 0.47496 | AF25: 0.01655 | AG25: 0.01655 | AH25: 0.0003
A26: -0.77 | B26: 0.46301 | C26: 0.23000 | D26: -0.23301 | E26: 0.23301 | F26: 0.0543 | H26: -0.77 | I26: 0.46301 | J26: 0.52645 | K26: 0.06344 | L26: 0.06344 | M26: 0.0040 | O26: -0.77 | P26: 0.46301 | Q26: 0.44884 | R26: -0.01417 | S26: 0.01417 | T26: 0.0002 | V26: -0.77 | W26: 0.46301 | X26: 0.46290 | Y26: -0.00011 | Z26: 0.00011 | AA26: 0.0000 | AC26: -0.77 | AD26: 0.46301 | AE26: 0.47687 | AF26: 0.01386 | AG26: 0.01386 | AH26: 0.0002
A27: -0.76 | B27: 0.46767 | C27: 0.24000 | D27: -0.22767 | E27: 0.22767 | F27: 0.0518 | H27: -0.76 | I27: 0.46767 | J27: 0.52880 | K27: 0.06113 | L27: 0.06113 | M27: 0.0037 | O27: -0.76 | P27: 0.46767 | Q27: 0.45417 | R27: -0.01349 | S27: 0.01349 | T27: 0.0002 | V27: -0.76 | W27: 0.46767 | X27: 0.46752 | Y27: -0.00015 | Z27: 0.00015 | AA27: 0.0000 | AC27: -0.76 | AD27: 0.46767 | AE27: 0.47901 | AF27: 0.01134 | AG27: 0.01134 | AH27: 0.0001
A28: -0.75 | B28: 0.47237 | C28: 0.25000 | D28: -0.22237 | E28: 0.22237 | F28: 0.0494 | H28: -0.75 | I28: 0.47237 | J28: 0.53125 | K28: 0.05888 | L28: 0.05888 | M28: 0.0035 | O28: -0.75 | P28: 0.47237 | Q28: 0.45953 | R28: -0.01284 | S28: 0.01284 | T28: 0.0002 | V28: -0.75 | W28: 0.47237 | X28: 0.47219 | Y28: -0.00018 | Z28: 0.00018 | AA28: 0.0000 | AC28: -0.75 | AD28: 0.47237 | AE28: 0.48136 | AF28: 0.00900 | AG28: 0.00900 | AH28: 0.0001
A29: -0.74 | B29: 0.47711 | C29: 0.26000 | D29: -0.21711 | E29: 0.21711 | F29: 0.0471 | H29: -0.74 | I29: 0.47711 | J29: 0.53380 | K29: 0.05669 | L29: 0.05669 | M29: 0.0032 | O29: -0.74 | P29: 0.47711 | Q29: 0.46491 | R29: -0.01220 | S29: 0.01220 | T29: 0.0001 | V29: -0.74 | W29: 0.47711 | X29: 0.47691 | Y29: -0.00021 | Z29: 0.00021 | AA29: 0.0000 | AC29: -0.74 | AD29: 0.47711 | AE29: 0.48392 | AF29: 0.00681 | AG29: 0.00681 | AH29: 0.0000
A30: -0.73 | B30: 0.48191 | C30: 0.27000 | D30: -0.21191 | E30: 0.21191 | F30: 0.0449 | H30: -0.73 | I30: 0.48191 | J30: 0.53645 | K30: 0.05454 | L30: 0.05454 | M30: 0.0030 | O30: -0.73 | P30: 0.48191 | Q30: 0.47032 | R30: -0.01159 | S30: 0.01159 | T30: 0.0001 | V30: -0.73 | W30: 0.48191 | X30: 0.48168 | Y30: -0.00023 | Z30: 0.00023 | AA30: 0.0000 | AC30: -0.73 | AD30: 0.48191 | AE30: 0.48669 | AF30: 0.00478 | AG30: 0.00478 | AH30: 0.0000
A31: -0.72 | B31: 0.48675 | C31: 0.28000 | D31: -0.20675 | E31: 0.20675 | F31: 0.0427 | H31: -0.72 | I31: 0.48675 | J31: 0.53920 | K31: 0.05245 | L31: 0.05245 | M31: 0.0028 | O31: -0.72 | P31: 0.48675 | Q31: 0.47575 | R31: -0.01100 | S31: 0.01100 | T31: 0.0001 | V31: -0.72 | W31: 0.48675 | X31: 0.48650 | Y31: -0.00025 | Z31: 0.00025 | AA31: 0.0000 | AC31: -0.72 | AD31: 0.48675 | AE31: 0.48965 | AF31: 0.00290 | AG31: 0.00290 | AH31: 0.0000
A32: -0.71 | B32: 0.49164 | C32: 0.29000 | D32: -0.20164 | E32: 0.20164 | F32: 0.0407 | H32: -0.71 | I32: 0.49164 | J32: 0.54205 | K32: 0.05041 | L32: 0.05041 | M32: 0.0025 | O32: -0.71 | P32: 0.49164 | Q32: 0.48121 | R32: -0.01044 | S32: 0.01044 | T32: 0.0001 | V32: -0.71 | W32: 0.49164 | X32: 0.49137 | Y32: -0.00027 | Z32: 0.00027 | AA32: 0.0000 | AC32: -0.71 | AD32: 0.49164 | AE32: 0.49281 | AF32: 0.00116 | AG32: 0.00116 | AH32: 0.0000
A33: -0.7 | B33: 0.49659 | C33: 0.30000 | D33: -0.19659 | E33: 0.19659 | F33: 0.0386 | H33: -0.7 | I33: 0.49659 | J33: 0.54500 | K33: 0.04841 | L33: 0.04841 | M33: 0.0023 | O33: -0.7 | P33: 0.49659 | Q33: 0.48669 | R33: -0.00990 | S33: 0.00990 | T33: 0.0001 | V33: -0.7 | W33: 0.49659 | X33: 0.49629 | Y33: -0.00029 | Z33: 0.00029 | AA33: 0.0000 | AC33: -0.7 | AD33: 0.49659 | AE33: 0.49615 | AF33: -0.00044 | AG33: 0.00044 | AH33: 0.0000
A34: -0.69 | B34: 0.50158 | C34: 0.31000 | D34: -0.19158 | E34: 0.19158 | F34: 0.0367 | H34: -0.69 | I34: 0.50158 | J34: 0.54805 | K34: 0.04647 | L34: 0.04647 | M34: 0.0022 | O34: -0.69 | P34: 0.50158 | Q34: 0.49220 | R34: -0.00937 | S34: 0.00937 | T34: 0.0001 | V34: -0.69 | W34: 0.50158 | X34: 0.50127 | Y34: -0.00031 | Z34: 0.00031 | AA34: 0.0000 | AC34: -0.69 | AD34: 0.50158 | AE34: 0.49967 | AF34: -0.00190 | AG34: 0.00190 | AH34: 0.0000
A35: -0.68 | B35: 0.50662 | C35: 0.32000 | D35: -0.18662 | E35: 0.18662 | F35: 0.0348 | H35: -0.68 | I35: 0.50662 | J35: 0.55120 | K35: 0.04458 | L35: 0.04458 | M35: 0.0020 | O35: -0.68 | P35: 0.50662 | Q35: 0.49775 | R35: -0.00887 | S35: 0.00887 | T35: 0.0001 | V35: -0.68 | W35: 0.50662 | X35: 0.50630 | Y35: -0.00032 | Z35: 0.00032 | AA35: 0.0000 | AC35: -0.68 | AD35: 0.50662 | AE35: 0.50338 | AF35: -0.00324 | AG35: 0.00324 | AH35: 0.0000
A36: =A35+(bb0-aa0)/200 -> -0.67 | B36: 0.51171 | C36: 0.33000 | D36: -0.18171 | E36: 0.18171 | F36: 0.0330 | H36: -0.67 | I36: 0.51171 | J36: 0.55445 | K36: 0.04274 | L36: 0.04274 | M36: 0.0018 | O36: =O35+(bb-aa)/200 -> -0.67 | P36: 0.51171 | Q36: 0.50332 | R36: -0.00839 | S36: 0.00839 | T36: 0.0001 | V36: =V35+(bbb-aaa)/200 -> -0.67 | W36: 0.51171 | X36: 0.51138 | Y36: -0.00033 | Z36: 0.00033 | AA36: 0.0000 | AC36: =AC35+(bbbb-aaaa)/200 -> -0.67 | AD36: 0.51171 | AE36: 0.50725 | AF36: -0.00446 | AG36: 0.00446 | AH36: 0.0000
A37: -0.66 | B37: 0.51685 | C37: 0.34000 | D37: -0.17685 | E37: 0.17685 | F37: 0.0313 | H37: -0.66 | I37: 0.51685 | J37: 0.55780 | K37: 0.04095 | L37: 0.04095 | M37: 0.0017 | O37: -0.66 | P37: 0.51685 | Q37: 0.50893 | R37: -0.00793 | S37: 0.00793 | T37: 0.0001 | V37: -0.66 | W37: 0.51685 | X37: 0.51652 | Y37: -0.00034 | Z37: 0.00034 | AA37: 0.0000 | AC37: -0.66 | AD37: 0.51685 | AE37: 0.51129 | AF37: -0.00556 | AG37: 0.00556 | AH37: 0.0000
A38: -0.65 | B38: 0.52205 | C38: 0.35000 | D38: -0.17205 | E38: 0.17205 | F38: 0.0296 | H38: -0.65 | I38: 0.52205 | J38: 0.56125 | K38: 0.03920 | L38: 0.03920 | M38: 0.0015 | O38: -0.65 | P38: 0.52205 | Q38: 0.51456 | R38: -0.00748 | S38: 0.00748 | T38: 0.0001 | V38: -0.65 | W38: 0.52205 | X38: 0.52170 | Y38: -0.00034 | Z38: 0.00034 | AA38: 0.0000 | AC38: -0.65 | AD38: 0.52205 | AE38: 0.51549 | AF38: -0.00656 | AG38: 0.00656 | AH38: 0.0000
A39: -0.64 | B39: 0.52729 | C39: 0.36000 | D39: -0.16729 | E39: 0.16729 | F39: 0.0280 | H39: -0.64 | I39: 0.52729 | J39: 0.56480 | K39: 0.03751 | L39: 0.03751 | M39: 0.0014 | O39: -0.64 | P39: 0.52729 | Q39: 0.52024 | R39: -0.00706 | S39: 0.00706 | T39: 0.0000 | V39: -0.64 | W39: 0.52729 | X39: 0.52695 | Y39: -0.00035 | Z39: 0.00035 | AA39: 0.0000 | AC39: -0.64 | AD39: 0.52729 | AE39: 0.51985 | AF39: -0.00744 | AG39: 0.00744 | AH39: 0.0001
A40: -0.63 | B40: 0.53259 | C40: 0.37000 | D40: -0.16259 | E40: 0.16259 | F40: 0.0264 | H40: -0.63 | I40: 0.53259 | J40: 0.56845 | K40: 0.03586 | L40: 0.03586 | M40: 0.0013 | O40: -0.63 | P40: 0.53259 | Q40: 0.52594 | R40: -0.00665 | S40: 0.00665 | T40: 0.0000 | V40: -0.63 | W40: 0.53259 | X40: 0.53224 | Y40: -0.00035 | Z40: 0.00035 | AA40: 0.0000 | AC40: -0.63 | AD40: 0.53259 | AE40: 0.52436 | AF40: -0.00823 | AG40: 0.00823 | AH40: 0.0001
A41: -0.62 | B41: 0.53794 | C41: 0.38000 | D41: -0.15794 | E41: 0.15794 | F41: 0.0249 | H41: -0.62 | I41: 0.53794 | J41: 0.57220 | K41: 0.03426 | L41: 0.03426 | M41: 0.0012 | O41: -0.62 | P41: 0.53794 | Q41: 0.53168 | R41: -0.00626 | S41: 0.00626 | T41: 0.0000 | V41: -0.62 | W41: 0.53794 | X41: 0.53759 | Y41: -0.00035 | Z41: 0.00035 | AA41: 0.0000 | AC41: -0.62 | AD41: 0.53794 | AE41: 0.52902 | AF41: -0.00892 | AG41: 0.00892 | AH41: 0.0001
A42: -0.61 | B42: 0.54335 | C42: 0.39000 | D42: -0.15335 | E42: 0.15335 | F42: 0.0235 | H42: -0.61 | I42: 0.54335 | J42: 0.57605 | K42: 0.03270 | L42: 0.03270 | M42: 0.0011 | O42: -0.61 | P42: 0.54335 | Q42: 0.53746 | R42: -0.00589 | S42: 0.00589 | T42: 0.0000 | V42: -0.61 | W42: 0.54335 | X42: 0.54300 | Y42: -0.00035 | Z42: 0.00035 | AA42: 0.0000 | AC42: -0.61 | AD42: 0.54335 | AE42: 0.53383 | AF42: -0.00953 | AG42: 0.00953 | AH42: 0.0001
A43: -0.6 | B43: 0.54881 | C43: 0.40000 | D43: -0.14881 | E43: 0.14881 | F43: 0.0221 | H43: -0.6 | I43: 0.54881 | J43: 0.58000 | K43: 0.03119 | L43: 0.03119 | M43: 0.0010 | O43: -0.6 | P43: 0.54881 | Q43: 0.54328 | R43: -0.00553 | S43: 0.00553 | T43: 0.0000 | V43: -0.6 | W43: 0.54881 | X43: 0.54846 | Y43: -0.00035 | Z43: 0.00035 | AA43: 0.0000 | AC43: -0.6 | AD43: 0.54881 | AE43: 0.53877 | AF43: -0.01004 | AG43: 0.01004 | AH43: 0.0001
A44: -0.59 | B44: 0.55433 | C44: 0.41000 | D44: -0.14433 | E44: 0.14433 | F44: 0.0208 | H44: -0.59 | I44: 0.55433 | J44: 0.58405 | K44: 0.02972 | L44: 0.02972 | M44: 0.0009 | O44: -0.59 | P44: 0.55433 | Q44: 0.54914 | R44: -0.00519 | S44: 0.00519 | T44: 0.0000 | V44: -0.59 | W44: 0.55433 | X44: 0.55398 | Y44: -0.00034 | Z44: 0.00034 | AA44: 0.0000 | AC44: -0.59 | AD44: 0.55433 | AE44: 0.54385 | AF44: -0.01048 | AG44: 0.01048 | AH44: 0.0001
A45: -0.58 | B45: 0.55990 | C45: 0.42000 | D45: -0.13990 | E45: 0.13990 | F45: 0.0196 | H45: -0.58 | I45: 0.55990 | J45: 0.58820 | K45: 0.02830 | L45: 0.02830 | M45: 0.0008 | O45: -0.58 | P45: 0.55990 | Q45: 0.55503 | R45: -0.00487 | S45: 0.00487 | T45: 0.0000 | V45: -0.58 | W45: 0.55990 | X45: 0.55956 | Y45: -0.00034 | Z45: 0.00034 | AA45: 0.0000 | AC45: -0.58 | AD45: 0.55990 | AE45: 0.54906 | AF45: -0.01084 | AG45: 0.01084 | AH45: 0.0001
A46: -0.57 | B46: 0.56553 | C46: 0.43000 | D46: -0.13553 | E46: 0.13553 | F46: 0.0184 | H46: -0.57 | I46: 0.56553 | J46: 0.59245 | K46: 0.02692 | L46: 0.02692 | M46: 0.0007 | O46: -0.57 | P46: 0.56553 | Q46: 0.56097 | R46: -0.00456 | S46: 0.00456 | T46: 0.0000 | V46: -0.57 | W46: 0.56553 | X46: 0.56519 | Y46: -0.00034 | Z46: 0.00034 | AA46: 0.0000 | AC46: -0.57 | AD46: 0.56553 | AE46: 0.55440 | AF46: -0.01112 | AG46: 0.01112 | AH46: 0.0001
A47: -0.56 | B47: 0.57121 | C47: 0.44000 | D47: -0.13121 | E47: 0.13121 | F47: 0.0172 | H47: -0.56 | I47: 0.57121 | J47: 0.59680 | K47: 0.02559 | L47: 0.02559 | M47: 0.0007 | O47: -0.56 | P47: 0.57121 | Q47: 0.56695 | R47: -0.00426 | S47: 0.00426 | T47: 0.0000 | V47: -0.56 | W47: 0.57121 | X47: 0.57088 | Y47: -0.00033 | Z47: 0.00033 | AA47: 0.0000 | AC47: -0.56 | AD47: 0.57121 | AE47: 0.55987 | AF47: -0.01134 | AG47: 0.01134 | AH47: 0.0001
A48: -0.55 | B48: 0.57695 | C48: 0.45000 | D48: -0.12695 | E48: 0.12695 | F48: 0.0161 | H48: -0.55 | I48: 0.57695 | J48: 0.60125 | K48: 0.02430 | L48: 0.02430 | M48: 0.0006 | O48: -0.55 | P48: 0.57695 | Q48: 0.57297 | R48: -0.00398 | S48: 0.00398 | T48: 0.0000 | V48: -0.55 | W48: 0.57695 | X48: 0.57663 | Y48: -0.00032 | Z48: 0.00032 | AA48: 0.0000 | AC48: -0.55 | AD48: 0.57695 | AE48: 0.56545 | AF48: -0.01150 | AG48: 0.01150 | AH48: 0.0001
A49: -0.54 | B49: 0.58275 | C49: 0.46000 | D49: -0.12275 | E49: 0.12275 | F49: 0.0151 | H49: -0.54 | I49: 0.58275 | J49: 0.60580 | K49: 0.02305 | L49: 0.02305 | M49: 0.0005 | O49: -0.54 | P49: 0.58275 | Q49: 0.57903 | R49: -0.00372 | S49: 0.00372 | T49: 0.0000 | V49: -0.54 | W49: 0.58275 | X49: 0.58243 | Y49: -0.00032 | Z49: 0.00032 | AA49: 0.0000 | AC49: -0.54 | AD49: 0.58275 | AE49: 0.57115 | AF49: -0.01160 | AG49: 0.01160 | AH49: 0.0001
A50: -0.53 | B50: 0.58860 | C50: 0.47000 | D50: -0.11860 | E50: 0.11860 | F50: 0.0141 | H50: -0.53 | I50: 0.58860 | J50: 0.61045 | K50: 0.02185 | L50: 0.02185 | M50: 0.0005 | O50: -0.53 | P50: 0.58860 | Q50: 0.58514 | R50: -0.00346 | S50: 0.00346 | T50: 0.0000 | V50: -0.53 | W50: 0.58860 | X50: 0.58830 | Y50: -0.00031 | Z50: 0.00031 | AA50: 0.0000 | AC50: -0.53 | AD50: 0.58860 | AE50: 0.57697 | AF50: -0.01164 | AG50: 0.01164 | AH50: 0.0001
A51: -0.52 | B51: 0.59452 | C51: 0.48000 | D51: -0.11452 | E51: 0.11452 | F51: 0.0131 | H51: -0.52 | I51: 0.59452 | J51: 0.61520 | K51: 0.02068 | L51: 0.02068 | M51: 0.0004 | O51: -0.52 | P51: 0.59452 | Q51: 0.59130 | R51: -0.00322 | S51: 0.00322 | T51: 0.0000 | V51: -0.52 | W51: 0.59452 | X51: 0.59422 | Y51: -0.00030 | Z51: 0.00030 | AA51: 0.0000 | AC51: -0.52 | AD51: 0.59452 | AE51: 0.58289 | AF51: -0.01163 | AG51: 0.01163 | AH51: 0.0001
A52: -0.51 | B52: 0.60050 | C52: 0.49000 | D52: -0.11050 | E52: 0.11050 | F52: 0.0122 | H52: -0.51 | I52: 0.60050 | J52: 0.62005 | K52: 0.01955 | L52: 0.01955 | M52: 0.0004 | O52: -0.51 | P52: 0.60050 | Q52: 0.59750 | R52: -0.00300 | S52: 0.00300 | T52: 0.0000 | V52: -0.51 | W52: 0.60050 | X52: 0.60021 | Y52: -0.00029 | Z52: 0.00029 | AA52: 0.0000 | AC52: -0.51 | AD52: 0.60050 | AE52: 0.58893 | AF52: -0.01157 | AG52: 0.01157 | AH52: 0.0001
A53: -0.5 | B53: 0.60653 | C53: 0.50000 | D53: -0.10653 | E53: 0.10653 | F53: 0.0113 | H53: -0.5 | I53: 0.60653 | J53: 0.62500 | K53: 0.01847 | L53: 0.01847 | M53: 0.0003 | O53: -0.5 | P53: 0.60653 | Q53: 0.60375 | R53: -0.00278 | S53: 0.00278 | T53: 0.0000 | V53: -0.5 | W53: 0.60653 | X53: 0.60625 | Y53: -0.00028 | Z53: 0.00028 | AA53: 0.0000 | AC53: -0.5 | AD53: 0.60653 | AE53: 0.59506 | AF53: -0.01147 | AG53: 0.01147 | AH53: 0.0001
A54: -0.49 | B54: 0.61263 | C54: 0.51000 | D54: -0.10263 | E54: 0.10263 | F54: 0.0105 | H54: -0.49 | I54: 0.61263 | J54: 0.63005 | K54: 0.01742 | L54: 0.01742 | M54: 0.0003 | O54: -0.49 | P54: 0.61263 | Q54: 0.61005 | R54: -0.00258 | S54: 0.00258 | T54: 0.0000 | V54: -0.49 | W54: 0.61263 | X54: 0.61236 | Y54: -0.00027 | Z54: 0.00027 | AA54: 0.0000 | AC54: -0.49 | AD54: 0.61263 | AE54: 0.60130 | AF54: -0.01133 | AG54: 0.01133 | AH54: 0.0001
A55: -0.48 | B55: 0.61878 | C55: 0.52000 | D55: -0.09878 | E55: 0.09878 | F55: 0.0098 | H55: -0.48 | I55: 0.61878 | J55: 0.63520 | K55: 0.01642 | L55: 0.01642 | M55: 0.0003 | O55: -0.48 | P55: 0.61878 | Q55: 0.61640 | R55: -0.00238 | S55: 0.00238 | T55: 0.0000 | V55: -0.48 | W55: 0.61878 | X55: 0.61852 | Y55: -0.00026 | Z55: 0.00026 | AA55: 0.0000 | AC55: -0.48 | AD55: 0.61878 | AE55: 0.60764 | AF55: -0.01115 | AG55: 0.01115 | AH55: 0.0001
A56: -0.47 | B56: 0.62500 | C56: 0.53000 | D56: -0.09500 | E56: 0.09500 | F56: 0.0090 | H56: -0.47 | I56: 0.62500 | J56: 0.64045 | K56: 0.01545 | L56: 0.01545 | M56: 0.0002 | O56: -0.47 | P56: 0.62500 | Q56: 0.62280 | R56: -0.00220 | S56: 0.00220 | T56: 0.0000 | V56: -0.47 | W56: 0.62500 | X56: 0.62475 | Y56: -0.00025 | Z56: 0.00025 | AA56: 0.0000 | AC56: -0.47 | AD56: 0.62500 | AE56: 0.61407 | AF56: -0.01094 | AG56: 0.01094 | AH56: 0.0001
A57: -0.46 | B57: 0.63128 | C57: 0.54000 | D57: -0.09128 | E57: 0.09128 | F57: 0.0083 | H57: -0.46 | I57: 0.63128 | J57: 0.64580 | K57: 0.01452 | L57: 0.01452 | M57: 0.0002 | O57: -0.46 | P57: 0.63128 | Q57: 0.62925 | R57: -0.00203 | S57: 0.00203 | T57: 0.0000 | V57: -0.46 | W57: 0.63128 | X57: 0.63104 | Y57: -0.00024 | Z57: 0.00024 | AA57: 0.0000 | AC57: -0.46 | AD57: 0.63128 | AE57: 0.62059 | AF57: -0.01069 | AG57: 0.01069 | AH57: 0.0001
A58: -0.45 | B58: 0.63763 | C58: 0.55000 | D58: -0.08763 | E58: 0.08763 | F58: 0.0077 | H58: -0.45 | I58: 0.63763 | J58: 0.65125 | K58: 0.01362 | L58: 0.01362 | M58: 0.0002 | O58: -0.45 | P58: 0.63763 | Q58: 0.63576 | R58: -0.00187 | S58: 0.00187 | T58: 0.0000 | V58: -0.45 | W58: 0.63763 | X58: 0.63740 | Y58: -0.00023 | Z58: 0.00023 | AA58: 0.0000 | AC58: -0.45 | AD58: 0.63763 | AE58: 0.62720 | AF58: -0.01042 | AG58: 0.01042 | AH58: 0.0001
A59: -0.44 | B59: 0.64404 | C59: 0.56000 | D59: -0.08404 | E59: 0.08404 | F59: 0.0071 | H59: -0.44 | I59: 0.64404 | J59: 0.65680 | K59: 0.01276 | L59: 0.01276 | M59: 0.0002 | O59: -0.44 | P59: 0.64404 | Q59: 0.64232 | R59: -0.00172 | S59: 0.00172 | T59: 0.0000 | V59: -0.44 | W59: 0.64404 | X59: 0.64382 | Y59: -0.00022 | Z59: 0.00022 | AA59: 0.0000 | AC59: -0.44 | AD59: 0.64404 | AE59: 0.63391 | AF59: -0.01013 | AG59: 0.01013 | AH59: 0.0001
A60: -0.43 | B60: 0.65051 | C60: 0.57000 | D60: -0.08051 | E60: 0.08051 | F60: 0.0065 | H60: -0.43 | I60: 0.65051 | J60: 0.66245 | K60: 0.01194 | L60: 0.01194 | M60: 0.0001 | O60: -0.43 | P60: 0.65051 | Q60: 0.64893 | R60: -0.00158 | S60: 0.00158 | T60: 0.0000 | V60: -0.43 | W60: 0.65051 | X60: 0.65030 | Y60: -0.00021 | Z60: 0.00021 | AA60: 0.0000 | AC60: -0.43 | AD60: 0.65051 | AE60: 0.64069 | AF60: -0.00981 | AG60: 0.00981 | AH60: 0.0001
A61: -0.42 | B61: 0.65705 | C61: 0.58000 | D61: -0.07705 | E61: 0.07705 | F61: 0.0059 | H61: -0.42 | I61: 0.65705 | J61: 0.66820 | K61: 0.01115 | L61: 0.01115 | M61: 0.0001 | O61: -0.42 | P61: 0.65705 | Q61: 0.65561 | R61: -0.00144 | S61: 0.00144 | T61: 0.0000 | V61: -0.42 | W61: 0.65705 | X61: 0.65685 | Y61: -0.00020 | Z61: 0.00020 | AA61: 0.0000 | AC61: -0.42 | AD61: 0.65705 | AE61: 0.64757 | AF61: -0.00948 | AG61: 0.00948 | AH61: 0.0001
A62: -0.41 | B62: 0.66365 | C62: 0.59000 | D62: -0.07365 | E62: 0.07365 | F62: 0.0054 | H62: -0.41 | I62: 0.66365 | J62: 0.67405 | K62: 0.01040 | L62: 0.01040 | M62: 0.0001 | O62: -0.41 | P62: 0.66365 | Q62: 0.66233 | R62: -0.00132 | S62: 0.00132 | T62: 0.0000 | V62: -0.41 | W62: 0.66365 | X62: 0.66346 | Y62: -0.00019 | Z62: 0.00019 | AA62: 0.0000 | AC62: -0.41 | AD62: 0.66365 | AE62: 0.65452 | AF62: -0.00913 | AG62: 0.00913 | AH62: 0.0001
A63: -0.4 | B63: 0.67032 | C63: 0.60000 | D63: -0.07032 | E63: 0.07032 | F63: 0.0049 | H63: -0.4 | I63: 0.67032 | J63: 0.68000 | K63: 0.00968 | L63: 0.00968 | M63: 0.0001 | O63: -0.4 | P63: 0.67032 | Q63: 0.66912 | R63: -0.00120 | S63: 0.00120 | T63: 0.0000 | V63: -0.4 | W63: 0.67032 | X63: 0.67014 | Y63: -0.00018 | Z63: 0.00018 | AA63: 0.0000 | AC63: -0.4 | AD63: 0.67032 | AE63: 0.66155 | AF63: -0.00877 | AG63: 0.00877 | AH63: 0.0001
A64: -0.39 | B64: 0.67706 | C64: 0.61000 | D64: -0.06706 | E64: 0.06706 | F64: 0.0045 | H64: -0.39 | I64: 0.67706 | J64: 0.68605 | K64: 0.00899 | L64: 0.00899 | M64: 0.0001 | O64: -0.39 | P64: 0.67706 | Q64: 0.67597 | R64: -0.00109 | S64: 0.00109 | T64: 0.0000 | V64: -0.39 | W64: 0.67706 | X64: 0.67689 | Y64: -0.00017 | Z64: 0.00017 | AA64: 0.0000 | AC64: -0.39 | AD64: 0.67706 | AE64: 0.66866 | AF64: -0.00840 | AG64: 0.00840 | AH64: 0.0001
A65: -0.38 | B65: 0.68386 | C65: 0.62000 | D65: -0.06386 | E65: 0.06386 | F65: 0.0041 | H65: -0.38 | I65: 0.68386 | J65: 0.69220 | K65: 0.00834 | L65: 0.00834 | M65: 0.0001 | O65: -0.38 | P65: 0.68386 | Q65: 0.68287 | R65: -0.00099 | S65: 0.00099 | T65: 0.0000 | V65: -0.38 | W65: 0.68386 | X65: 0.68371 | Y65: -0.00016 | Z65: 0.00016 | AA65: 0.0000 | AC65: -0.38 | AD65: 0.68386 | AE65: 0.67585 | AF65: -0.00802 | AG65: 0.00802 | AH65: 0.0001
A66: -0.37 | B66: 0.69073 | C66: 0.63000 | D66: -0.06073 | E66: 0.06073 | F66: 0.0037 | H66: -0.37 | I66: 0.69073 | J66: 0.69845 | K66: 0.00772 | L66: 0.00772 | M66: 0.0001 | O66: -0.37 | P66: 0.69073 | Q66: 0.68984 | R66: -0.00090 | S66: 0.00090 | T66: 0.0000 | V66: -0.37 | W66: 0.69073 | X66: 0.69059 | Y66: -0.00015 | Z66: 0.00015 | AA66: 0.0000 | AC66: -0.37 | AD66: 0.69073 | AE66: 0.68310 | AF66: -0.00763 | AG66: 0.00763 | AH66: 0.0001
A67: -0.36 | B67: 0.69768 | C67: =aa00+bb00*A67 -> 0.64000 | D67: -0.05768 | E67: 0.05768 | F67: 0.0033 | H67: -0.36 | I67: 0.69768 | J67: =a0+b0*H67+c0*H67^2 -> 0.70480 | K67: 0.00712 | L67: 0.00712 | M67: 0.0001 | O67: -0.36 | P67: 0.69768 | Q67: =a00+b00*O67+c00*O67^2+d00*A67^3 -> 0.69687 | R67: -0.00081 | S67: 0.00081 | T67: 0.0000 | V67: -0.36 | W67: 0.69768 | X67: =a000+b000*V67+c000*V67^2+d000*O67^3+e000*O67^4 -> 0.69754 | Y67: -0.00014 | Z67: 0.00014 | AA67: 0.0000 | AC67: -0.36 | AD67: 0.69768 | AE67: =a0000+b0000*AC67+c0000*AC67^2+d0000*AC67^3+e0000*AC67^4+f0000*AC67^5 -> 0.69044 | AF67: -0.00724 | AG67: 0.00724 | AH67: 0.0001
A68: =A67+(bb0-aa0)/200 -> -0.35 | B68: =EXP(A68) -> 0.70469 | C68: 0.65000 | D68: =C68-B68 -> -0.05469 | E68: =ABS(D68) -> 0.05469 | F68: =D68^2 -> 0.0030 | H68: =H67+(b-a)/200 -> -0.35 | I68: =EXP(H68) -> 0.70469 | J68: 0.71125 | K68: =J68-I68 -> 0.00656 | L68: =ABS(K68) -> 0.00656 | M68: =K68^2 -> 0.0000 | O68: =O67+(bb-aa)/200 -> -0.35 | P68: =EXP(O68) -> 0.70469 | Q68: 0.70396 | R68: =Q68-P68 -> -0.00073 | S68: =ABS(R68) -> 0.00073 | T68: =R68^2 -> 0.0000 | V68: =V67+(bbb-aaa)/200 -> -0.35 | W68: =EXP(V68) -> 0.70469 | X68: 0.70456 | Y68: =X68-W68 -> -0.00013 | Z68: =ABS(Y68) -> 0.00013 | AA68: =Y68^2 -> 0.0000 | AC68: =AC67+(bbbb-aaaa)/200 -> -0.35 | AD68: =EXP(AC68) -> 0.70469 | AE68: 0.69784 | AF68: =AE68-AD68 -> -0.00685 | AG68: =ABS(AF68) -> 0.00685 | AH68: =AF68^2 -> 0.0000
A69: -0.34 | B69: 0.71177 | C69: 0.66000 | D69: -0.05177 | E69: 0.05177 | F69: 0.0027 | H69: -0.34 | I69: 0.71177 | J69: 0.71780 | K69: 0.00603 | L69: 0.00603 | M69: 0.0000 | O69: -0.34 | P69: 0.71177 | Q69: 0.71112 | R69: -0.00065 | S69: 0.00065 | T69: 0.0000 | V69: -0.34 | W69: 0.71177 | X69: 0.71165 | Y69: -0.00012 | Z69: 0.00012 | AA69: 0.0000 | AC69: -0.34 | AD69: 0.71177 | AE69: 0.70532 | AF69: -0.00645 | AG69: 0.00645 | AH69: 0.0000
A70: -0.33 | B70: 0.71892 | C70: 0.67000 | D70: -0.04892 | E70: 0.04892 | F70: 0.0024 | H70: -0.33 | I70: 0.71892 | J70: 0.72445 | K70: 0.00553 | L70: 0.00553 | M70: 0.0000 | O70: -0.33 | P70: 0.71892 | Q70: 0.71834 | R70: -0.00058 | S70: 0.00058 | T70: 0.0000 | V70: -0.33 | W70: 0.71892 | X70: 0.71882 | Y70: -0.00011 | Z70: 0.00011 | AA70: 0.0000 | AC70: -0.33 | AD70: 0.71892 | AE70: 0.71286 | AF70: -0.00606 | AG70: 0.00606 | AH70: 0.0000
A71: -0.32 | B71: 0.72615 | C71: 0.68000 | D71: -0.04615 | E71: 0.04615 | F71: 0.0021 | H71: -0.32 | I71: 0.72615 | J71: 0.73120 | K71: 0.00505 | L71: 0.00505 | M71: 0.0000 | O71: -0.32 | P71: 0.72615 | Q71: 0.72563 | R71: -0.00052 | S71: 0.00052 | T71: 0.0000 | V71: -0.32 | W71: 0.72615 | X71: 0.72605 | Y71: -0.00010 | Z71: 0.00010 | AA71: 0.0000 | AC71: -0.32 | AD71: 0.72615 | AE71: 0.72047 | AF71: -0.00568 | AG71: 0.00568 | AH71: 0.0000
A72: -0.31 | B72: 0.73345 | C72: 0.69000 | D72: -0.04345 | E72: 0.04345 | F72: 0.0019 | H72: -0.31 | I72: 0.73345 | J72: 0.73805 | K72: 0.00460 | L72: 0.00460 | M72: 0.0000 | O72: -0.31 | P72: 0.73345 | Q72: 0.73299 | R72: -0.00046 | S72: 0.00046 | T72: 0.0000 | V72: -0.31 | W72: 0.73345 | X72: 0.73335 | Y72: -0.00009 | Z72: 0.00009 | AA72: 0.0000 | AC72: -0.31 | AD72: 0.73345 | AE72: 0.72815 | AF72: -0.00530 | AG72: 0.00530 | AH72: 0.0000
A73: -0.3 | B73: 0.74082 | C73: 0.70000 | D73: -0.04082 | E73: 0.04082 | F73: 0.0017 | H73: -0.3 | I73: 0.74082 | J73: 0.74500 | K73: 0.00418 | L73: 0.00418 | M73: 0.0000 | O73: -0.3 | P73: 0.74082 | Q73: 0.74041 | R73: -0.00041 | S73: 0.00041 | T73: 0.0000 | V73: -0.3 | W73: 0.74082 | X73: 0.74073 | Y73: -0.00008 | Z73: 0.00008 | AA73: 0.0000 | AC73: -0.3 | AD73: 0.74082 | AE73: 0.73590 | AF73: -0.00492 | AG73: 0.00492 | AH73: 0.0000
A74: -0.29 | B74: 0.74826 | C74: 0.71000 | D74: -0.03826 | E74: 0.03826 | F74: 0.0015 | H74: -0.29 | I74: 0.74826 | J74: 0.75205 | K74: 0.00379 | L74: 0.00379 | M74: 0.0000 | O74: -0.29 | P74: 0.74826 | Q74: 0.74790 | R74: -0.00036 | S74: 0.00036 | T74: 0.0000 | V74: -0.29 | W74: 0.74826 | X74: 0.74819 | Y74: -0.00008 | Z74: 0.00008 | AA74: 0.0000 | AC74: -0.29 | AD74: 0.74826 | AE74: 0.74371 | AF74: -0.00456 | AG74: 0.00456 | AH74: 0.0000
A75: -0.28 | B75: 0.75578 | C75: 0.72000 | D75: -0.03578 | E75: 0.03578 | F75: 0.0013 | H75: -0.28 | I75: 0.75578 | J75: 0.75920 | K75: 0.00342 | L75: 0.00342 | M75: 0.0000 | O75: -0.28 | P75: 0.75578 | Q75: 0.75547 | R75: -0.00032 | S75: 0.00032 | T75: 0.0000 | V75: -0.28 | W75: 0.75578 | X75: 0.75571 | Y75: -0.00007 | Z75: 0.00007 | AA75: 0.0000 | AC75: -0.28 | AD75: 0.75578 | AE75: 0.75158 | AF75: -0.00420 | AG75: 0.00420 | AH75: 0.0000
A76: -0.27 | B76: 0.76338 | C76: 0.73000 | D76: -0.03338 | E76: 0.03338 | F76: 0.0011 | H76: -0.27 | I76: 0.76338 | J76: 0.76645 | K76: 0.00307 | L76: 0.00307 | M76: 0.0000 | O76: -0.27 | P76: 0.76338 | Q76: 0.76310 | R76: -0.00028 | S76: 0.00028 | T76: 0.0000 | V76: -0.27 | W76: 0.76338 | X76: 0.76332 | Y76: -0.00006 | Z76: 0.00006 | AA76: 0.0000 | AC76: -0.27 | AD76: 0.76338 | AE76: 0.75952 | AF76: -0.00386 | AG76: 0.00386 | AH76: 0.0000
A77: -0.26 | B77: 0.77105 | C77: 0.74000 | D77: -0.03105 | E77: 0.03105 | F77: 0.0010 | H77: -0.26 | I77: 0.77105 | J77: 0.77380 | K77: 0.00275 | L77: 0.00275 | M77: 0.0000 | O77: -0.26 | P77: 0.77105 | Q77: 0.77081 | R77: -0.00024 | S77: 0.00024 | T77: 0.0000 | V77: -0.26 | W77: 0.77105 | X77: 0.77099 | Y77: -0.00006 | Z77: 0.00006 | AA77: 0.0000 | AC77: -0.26 | AD77: 0.77105 | AE77: 0.76753 | AF77: -0.00352 | AG77: 0.00352 | AH77: 0.0000
A78: -0.25 | B78: 0.77880 | C78: 0.75000 | D78: -0.02880 | E78: 0.02880 | F78: 0.0008 | H78: -0.25 | I78: 0.77880 | J78: 0.78125 | K78: 0.00245 | L78: 0.00245 | M78: 0.0000 | O78: -0.25 | P78: 0.77880 | Q78: 0.77859 | R78: -0.00021 | S78: 0.00021 | T78: 0.0000 | V78: -0.25 | W78: 0.77880 | X78: 0.77875 | Y78: -0.00005 | Z78: 0.00005 | AA78: 0.0000 | AC78: -0.25 | AD78: 0.77880 | AE78: 0.77560 | AF78: -0.00320 | AG78: 0.00320 | AH78: 0.0000
A79: -0.24 | B79: 0.78663 | C79: 0.76000 | D79: -0.02663 | E79: 0.02663 | F79: 0.0007 | H79: -0.24 | I79: 0.78663 | J79: 0.78880 | K79: 0.00217 | L79: 0.00217 | M79: 0.0000 | O79: -0.24 | P79: 0.78663 | Q79: 0.78645 | R79: -0.00018 | S79: 0.00018 | T79: 0.0000 | V79: -0.24 | W79: 0.78663 | X79: 0.78658 | Y79: -0.00005 | Z79: 0.00005 | AA79: 0.0000 | AC79: -0.24 | AD79: 0.78663 | AE79: 0.78373 | AF79: -0.00290 | AG79: 0.00290 | AH79: 0.0000
A80: -0.23 | B80: 0.79453 | C80: 0.77000 | D80: -0.02453 | E80: 0.02453 | F80: 0.0006 | H80: -0.23 | I80: 0.79453 | J80: 0.79645 | K80: 0.00192 | L80: 0.00192 | M80: 0.0000 | O80: -0.23 | P80: 0.79453 | Q80: 0.79438 | R80: -0.00015 | S80: 0.00015 | T80: 0.0000 | V80: -0.23 | W80: 0.79453 | X80: 0.79449 | Y80: -0.00004 | Z80: 0.00004 | AA80: 0.0000 | AC80: -0.23 | AD80: 0.79453 | AE80: 0.79193 | AF80: -0.00260 | AG80: 0.00260 | AH80: 0.0000
A81: -0.22 | B81: 0.80252 | C81: 0.78000 | D81: -0.02252 | E81: 0.02252 | F81: 0.0005 | H81: -0.22 | I81: 0.80252 | J81: 0.80420 | K81: 0.00168 | L81: 0.00168 | M81: 0.0000 | O81: -0.22 | P81: 0.80252 | Q81: 0.80239 | R81: -0.00013 | S81: 0.00013 | T81: 0.0000 | V81: -0.22 | W81: 0.80252 | X81: 0.80248 | Y81: -0.00004 | Z81: 0.00004 | AA81: 0.0000 | AC81: -0.22 | AD81: 0.80252 | AE81: 0.80019 | AF81: -0.00233 | AG81: 0.00233 | AH81: 0.0000
A82: -0.21 | B82: 0.81058 | C82: 0.79000 | D82: -0.02058 | E82: 0.02058 | F82: 0.0004 | H82: -0.21 | I82: 0.81058 | J82: 0.81205 | K82: 0.00147 | L82: 0.00147 | M82: 0.0000 | O82: -0.21 | P82: 0.81058 | Q82: 0.81048 | R82: -0.00011 | S82: 0.00011 | T82: 0.0000 | V82: -0.21 | W82: 0.81058 | X82: 0.81055 | Y82: -0.00003 | Z82: 0.00003 | AA82: 0.0000 | AC82: -0.21 | AD82: 0.81058 | AE82: 0.80852 | AF82: -0.00207 | AG82: 0.00207 | AH82: 0.0000
A83: -0.2 | B83: 0.81873 | C83: 0.80000 | D83: -0.01873 | E83: 0.01873 | F83: 0.0004 | H83: -0.2 | I83: 0.81873 | J83: 0.82000 | K83: 0.00127 | L83: 0.00127 | M83: 0.0000 | O83: -0.2 | P83: 0.81873 | Q83: 0.81864 | R83: -0.00009 | S83: 0.00009 | T83: 0.0000 | V83: -0.2 | W83: 0.81873 | X83: 0.81870 | Y83: -0.00003 | Z83: 0.00003 | AA83: 0.0000 | AC83: -0.2 | AD83: 0.81873 | AE83: 0.81691 | AF83: -0.00182 | AG83: 0.00182 | AH83: 0.0000
A84: -0.19 | B84: 0.82696 | C84: 0.81000 | D84: -0.01696 | E84: 0.01696 | F84: 0.0003 | H84: -0.19 | I84: 0.82696 | J84: 0.82805 | K84: 0.00109 | L84: 0.00109 | M84: 0.0000 | O84: -0.19 | P84: 0.82696 | Q84: 0.82688 | R84: -0.00008 | S84: 0.00008 | T84: 0.0000 | V84: -0.19 | W84: 0.82696 | X84: 0.82694 | Y84: -0.00002 | Z84: 0.00002 | AA84: 0.0000 | AC84: -0.19 | AD84: 0.82696 | AE84: 0.82537 | AF84: -0.00159 | AG84: 0.00159 | AH84: 0.0000
A85: -0.18 | B85: 0.83527 | C85: 0.82000 | D85: -0.01527 | E85: 0.01527 | F85: 0.0002 | H85: -0.18 | I85: 0.83527 | J85: 0.83620 | K85: 0.00093 | L85: 0.00093 | M85: 0.0000 | O85: -0.18 | P85: 0.83527 | Q85: 0.83521 | R85: -0.00006 | S85: 0.00006 | T85: 0.0000 | V85: -0.18 | W85: 0.83527 | X85: 0.83525 | Y85: -0.00002 | Z85: 0.00002 | AA85: 0.0000 | AC85: -0.18 | AD85: 0.83527 | AE85: 0.83389 | AF85: -0.00138 | AG85: 0.00138 | AH85: 0.0000
A86: -0.17 | B86: 0.84366 | C86: 0.83000 | D86: -0.01366 | E86: 0.01366 | F86: 0.0002 | H86: -0.17 | I86: 0.84366 | J86: 0.84445 | K86: 0.00079 | L86: 0.00079 | M86: 0.0000 | O86: -0.17 | P86: 0.84366 | Q86: 0.84361 | R86: -0.00005 | S86: 0.00005 | T86: 0.0000 | V86: -0.17 | W86: 0.84366 | X86: 0.84365 | Y86: -0.00002 | Z86: 0.00002 | AA86: 0.0000 | AC86: -0.17 | AD86: 0.84366 | AE86: 0.84248 | AF86: -0.00119 | AG86: 0.00119 | AH86: 0.0000
A87: -0.16 | B87: 0.85214 | C87: 0.84000 | D87: -0.01214 | E87: 0.01214 | F87: 0.0001 | H87: -0.16 | I87: 0.85214 | J87: 0.85280 | K87: 0.00066 | L87: 0.00066 | M87: 0.0000 | O87: -0.16 | P87: 0.85214 | Q87: 0.85210 | R87: -0.00004 | S87: 0.00004 | T87: 0.0000 | V87: -0.16 | W87: 0.85214 | X87: 0.85213 | Y87: -0.00001 | Z87: 0.00001 | AA87: 0.0000 | AC87: -0.16 | AD87: 0.85214 | AE87: 0.85114 | AF87: -0.00101 | AG87: 0.00101 | AH87: 0.0000
A88: -0.15 | B88: 0.86071 | C88: 0.85000 | D88: -0.01071 | E88: 0.01071 | F88: 0.0001 | H88: -0.15 | I88: 0.86071 | J88: 0.86125 | K88: 0.00054 | L88: 0.00054 | M88: 0.0000 | O88: -0.15 | P88: 0.86071 | Q88: 0.86068 | R88: -0.00003 | S88: 0.00003 | T88: 0.0000 | V88: -0.15 | W88: 0.86071 | X88: 0.86070 | Y88: -0.00001 | Z88: 0.00001 | AA88: 0.0000 | AC88: -0.15 | AD88: 0.86071 | AE88: 0.85986 | AF88: -0.00084 | AG88: 0.00084 | AH88: 0.0000
A89: -0.14 | B89: 0.86936 | C89: 0.86000 | D89: -0.00936 | E89: 0.00936 | F89: 0.0001 | H89: -0.14 | I89: 0.86936 | J89: 0.86980 | K89: 0.00044 | L89: 0.00044 | M89: 0.0000 | O89: -0.14 | P89: 0.86936 | Q89: 0.86933 | R89: -0.00002 | S89: 0.00002 | T89: 0.0000 | V89: -0.14 | W89: 0.86936 | X89: 0.86935 | Y89: -0.00001 | Z89: 0.00001 | AA89: 0.0000 | AC89: -0.14 | AD89: 0.86936 | AE89: 0.86866 | AF89: -0.00070 | AG89: 0.00070 | AH89: 0.0000
A90: -0.13 | B90: 0.87810 | C90: 0.87000 | D90: -0.00810 | E90: 0.00810 | F90: 0.0001 | H90: -0.13 | I90: 0.87810 | J90: 0.87845 | K90: 0.00035 | L90: 0.00035 | M90: 0.0000 | O90: -0.13 | P90: 0.87810 | Q90: 0.87808 | R90: -0.00002 | S90: 0.00002 | T90: 0.0000 | V90: -0.13 | W90: 0.87810 | X90: 0.87809 | Y90: -0.00001 | Z90: 0.00001 | AA90: 0.0000 | AC90: -0.13 | AD90: 0.87810 | AE90: 0.87753 | AF90: -0.00057 | AG90: 0.00057 | AH90: 0.0000
A91: -0.12 | B91: 0.88692 | C91: 0.88000 | D91: -0.00692 | E91: 0.00692 | F91: 0.0000 | H91: -0.12 | I91: 0.88692 | J91: 0.88720 | K91: 0.00028 | L91: 0.00028 | M91: 0.0000 | O91: -0.12 | P91: 0.88692 | Q91: 0.88691 | R91: -0.00001 | S91: 0.00001 | T91: 0.0000 | V91: -0.12 | W91: 0.88692 | X91: 0.88691 | Y91: -0.00001 | Z91: 0.00001 | AA91: 0.0000 | AC91: -0.12 | AD91: 0.88692 | AE91: 0.88646 | AF91: -0.00046 | AG91: 0.00046 | AH91: 0.0000
A92: -0.11 | B92: 0.89583 | C92: 0.89000 | D92: -0.00583 | E92: 0.00583 | F92: 0.0000 | H92: -0.11 | I92: 0.89583 | J92: 0.89605 | K92: 0.00022 | L92: 0.00022 | M92: 0.0000 | O92: -0.11 | P92: 0.89583 | Q92: 0.89582 | R92: -0.00001 | S92: 0.00001 | T92: 0.0000 | V92: -0.11 | W92: 0.89583 | X92: 0.89583 | Y92: -0.00000 | Z92: 0.00000 | AA92: 0.0000 | AC92: -0.11 | AD92: 0.89583 | AE92: 0.89548 | AF92: -0.00036 | AG92: 0.00036 | AH92: 0.0000
A93: -0.1 | B93: 0.90484 | C93: 0.90000 | D93: -0.00484 | E93: 0.00484 | F93: 0.0000 | H93: -0.1 | I93: 0.90484 | J93: 0.90500 | K93: 0.00016 | L93: 0.00016 | M93: 0.0000 | O93: -0.1 | P93: 0.90484 | Q93: 0.90483 | R93: -0.00001 | S93: 0.00001 | T93: 0.0000 | V93: -0.1 | W93: 0.90484 | X93: 0.90483 | Y93: -0.00000 | Z93: 0.00000 | AA93: 0.0000 | AC93: -0.1 | AD93: 0.90484 | AE93: 0.90456 | AF93: -0.00027 | AG93: 0.00027 | AH93: 0.0000
A94: -0.09 | B94: 0.91393 | C94: 0.91000 | D94: -0.00393 | E94: 0.00393 | F94: 0.0000 | H94: -0.09 | I94: 0.91393 | J94: 0.91405 | K94: 0.00012 | L94: 0.00012 | M94: 0.0000 | O94: -0.09 | P94: 0.91393 | Q94: 0.91393 | R94: -0.00001 | S94: 0.00001 | T94: 0.0000 | V94: -0.09 | W94: 0.91393 | X94: 0.91393 | Y94: -0.00000 | Z94: 0.00000 | AA94: 0.0000 | AC94: -0.09 | AD94: 0.91393 | AE94: 0.91373 | AF94: -0.00020 | AG94: 0.00020 | AH94: 0.0000
A95: -0.08 | B95: 0.92312 | C95: 0.92000 | D95: -0.00312 | E95: 0.00312 | F95: 0.0000 | H95: -0.08 | I95: 0.92312 | J95: 0.92320 | K95: 0.00008 | L95: 0.00008 | M95: 0.0000 | O95: -0.08 | P95: 0.92312 | Q95: 0.92311 | R95: -0.00000 | S95: 0.00000 | T95: 0.0000 | V95: -0.08 | W95: 0.92312 | X95: 0.92311 | Y95: -0.00000 | Z95: 0.00000 | AA95: 0.0000 | AC95: -0.08 | AD95: 0.92312 | AE95: 0.92297 | AF95: -0.00014 | AG95: 0.00014 | AH95: 0.0000
A96: -0.07 | B96: 0.93239 | C96: 0.93000 | D96: -0.00239 | E96: 0.00239 | F96: 0.0000 | H96: -0.07 | I96: 0.93239 | J96: 0.93245 | K96: 0.00006 | L96: 0.00006 | M96: 0.0000 | O96: -0.07 | P96: 0.93239 | Q96: 0.93239 | R96: -0.00000 | S96: 0.00000 | T96: 0.0000 | V96: -0.07 | W96: 0.93239 | X96: 0.93239 | Y96: -0.00000 | Z96: 0.00000 | AA96: 0.0000 | AC96: -0.07 | AD96: 0.93239 | AE96: 0.93230 | AF96: -0.00010 | AG96: 0.00010 | AH96: 0.0000
A97: -0.06 | B97: 0.94176 | C97: 0.94000 | D97: -0.00176 | E97: 0.00176 | F97: 0.0000 | H97: -0.06 | I97: 0.94176 | J97: 0.94180 | K97: 0.00004 | L97: 0.00004 | M97: 0.0000 | O97: -0.06 | P97: 0.94176 | Q97: 0.94176 | R97: -0.00000 | S97: 0.00000 | T97: 0.0000 | V97: -0.06 | W97: 0.94176 | X97: 0.94176 | Y97: -0.00000 | Z97: 0.00000 | AA97: 0.0000 | AC97: -0.06 | AD97: 0.94176 | AE97: 0.94170 | AF97: -0.00006 | AG97: 0.00006 | AH97: 0.0000
A98: -0.05 | B98: 0.95123 | C98: 0.95000 | D98: -0.00123 | E98: 0.00123 | F98: 0.0000 | H98: -0.05 | I98: 0.95123 | J98: 0.95125 | K98: 0.00002 | L98: 0.00002 | M98: 0.0000 | O98: -0.05 | P98: 0.95123 | Q98: 0.95123 | R98: -0.00000 | S98: 0.00000 | T98: 0.0000 | V98: -0.05 | W98: 0.95123 | X98: 0.95123 | Y98: -0.00000 | Z98: 0.00000 | AA98: 0.0000 | AC98: -0.05 | AD98: 0.95123 | AE98: 0.95119 | AF98: -0.00004 | AG98: 0.00004 | AH98: 0.0000
A99: -0.04 | B99: 0.96079 | C99: 0.96000 | D99: -0.00079 | E99: 0.00079 | F99: 0.0000 | H99: -0.04 | I99: 0.96079 | J99: 0.96080 | K99: 0.00001 | L99: 0.00001 | M99: 0.0000 | O99: -0.04 | P99: 0.96079 | Q99: 0.96079 | R99: -0.00000 | S99: 0.00000 | T99: 0.0000 | V99: -0.04 | W99: 0.96079 | X99: 0.96079 | Y99: -0.00000 | Z99: 0.00000 | AA99: 0.0000 | AC99: -0.04 | AD99: 0.96079 | AE99: 0.96077 | AF99: -0.00002 | AG99: 0.00002 | AH99: 0.0000
A100: =A99+(bb0-aa0)/200 -> -0.03 | B100: 0.97045 | C100: 0.97000 | D100: -0.00045 | E100: 0.00045 | F100: 0.0000 | H100: -0.03 | I100: 0.97045 | J100: 0.97045 | K100: 0.00000 | L100: 0.00000 | M100: 0.0000 | O100: =O99+(bb-aa)/200 -> -0.03 | P100: 0.97045 | Q100: 0.97045 | R100: -0.00000 | S100: 0.00000 | T100: 0.0000 | V100: =V99+(bbb-aaa)/200 -> -0.03 | W100: 0.97045 | X100: 0.97045 | Y100: -0.00000 | Z100: 0.00000 | AA100: 0.0000 | AC100: =AC99+(bbbb-aaaa)/200 -> -0.03 | AD100: 0.97045 | AE100: 0.97044 | AF100: -0.00001 | AG100: 0.00001 | AH100: 0.0000
A101: -0.02 | B101: 0.98020 | C101: 0.98000 | D101: -0.00020 | E101: 0.00020 | F101: 0.0000 | H101: -0.02 | I101: 0.98020 | J101: 0.98020 | K101: 0.00000 | L101: 0.00000 | M101: 0.0000 | O101: -0.02 | P101: 0.98020 | Q101: 0.98020 | R101: -0.00000 | S101: 0.00000 | T101: 0.0000 | V101: -0.02 | W101: 0.98020 | X101: 0.98020 | Y101: -0.00000 | Z101: 0.00000 | AA101: 0.0000 | AC101: -0.02 | AD101: 0.98020 | AE101: 0.98020 | AF101: -0.00000 | AG101: 0.00000 | AH101: 0.0000
A102: -0.01 | B102: 0.99005 | C102: 0.99000 | D102: -0.00005 | E102: 0.00005 | F102: 0.0000 | H102: -0.01 | I102: 0.99005 | J102: 0.99005 | K102: 0.00000 | L102: 0.00000 | M102: 0.0000 | O102: -0.01 | P102: 0.99005 | Q102: 0.99005 | R102: -0.00000 | S102: 0.00000 | T102: 0.0000 | V102: -0.01 | W102: 0.99005 | X102: 0.99005 | Y102: -0.00000 | Z102: 0.00000 | AA102: 0.0000 | AC102: -0.01 | AD102: 0.99005 | AE102: 0.99005 | AF102: -0.00000 | AG102: 0.00000 | AH102: 0.0000
A103: 7.528699886e-16 | B103: 1.00000 | C103: 1.00000 | D103: 0.00000 | E103: 0.00000 | F103: 0.0000 | H103: 7.528699886e-16 | I103: 1.00000 | J103: 1.00000 | K103: 0.00000 | L103: 0.00000 | M103: 0.0000 | O103: 7.528699886e-16 | P103: 1.00000 | Q103: 1.00000 | R103: 0.00000 | S103: 0.00000 | T103: 0.0000 | V103: 7.528699886e-16 | W103: 1.00000 | X103: 1.00000 | Y103: 0.00000 | Z103: 0.00000 | AA103: 0.0000 | AC103: 7.528699886e-16 | AD103: 1.00000 | AE103: 1.00000 | AF103: 0.00000 | AG103: 0.00000 | AH103: 0.0000
A104: 0.01 | B104: 1.01005 | C104: 1.01000 | D104: -0.00005 | E104: 0.00005 | F104: 0.0000 | H104: 0.01 | I104: 1.01005 | J104: 1.01005 | K104: -0.00000 | L104: 0.00000 | M104: 0.0000 | O104: 0.01 | P104: 1.01005 | Q104: 1.01005 | R104: 0.00000 | S104: 0.00000 | T104: 0.0000 | V104: 0.01 | W104: 1.01005 | X104: 1.01005 | Y104: 0.00000 | Z104: 0.00000 | AA104: 0.0000 | AC104: 0.01 | AD104: 1.01005 | AE104: 1.01005 | AF104: 0.00000 | AG104: 0.00000 | AH104: 0.0000
A105: 0.02 | B105: 1.02020 | C105: 1.02000 | D105: -0.00020 | E105: 0.00020 | F105: 0.0000 | H105: 0.02 | I105: 1.02020 | J105: 1.02020 | K105: -0.00000 | L105: 0.00000 | M105: 0.0000 | O105: 0.02 | P105: 1.02020 | Q105: 1.02020 | R105: 0.00000 | S105: 0.00000 | T105: 0.0000 | V105: 0.02 | W105: 1.02020 | X105: 1.02020 | Y105: 0.00000 | Z105: 0.00000 | AA105: 0.0000 | AC105: 0.02 | AD105: 1.02020 | AE105: 1.02020 | AF105: 0.00000 | AG105: 0.00000 | AH105: 0.0000
A106: 0.03 | B106: 1.03045 | C106: 1.03000 | D106: -0.00045 | E106: 0.00045 | F106: 0.0000 | H106: 0.03 | I106: 1.03045 | J106: 1.03045 | K106: -0.00000 | L106: 0.00000 | M106: 0.0000 | O106: 0.03 | P106: 1.03045 | Q106: 1.03045 | R106: 0.00000 | S106: 0.00000 | T106: 0.0000 | V106: 0.03 | W106: 1.03045 | X106: 1.03045 | Y106: 0.00000 | Z106: 0.00000 | AA106: 0.0000 | AC106: 0.03 | AD106: 1.03045 | AE106: 1.03046 | AF106: 0.00001 | AG106: 0.00001 | AH106: 0.0000
A107: 0.04 | B107: 1.04081 | C107: 1.04000 | D107: -0.00081 | E107: 0.00081 | F107: 0.0000 | H107: 0.04 | I107: 1.04081 | J107: 1.04080 | K107: -0.00001 | L107: 0.00001 | M107: 0.0000 | O107: 0.04 | P107: 1.04081 | Q107: 1.04081 | R107: 0.00000 | S107: 0.00000 | T107: 0.0000 | V107: 0.04 | W107: 1.04081 | X107: 1.04081 | Y107: 0.00000 | Z107: 0.00000 | AA107: 0.0000 | AC107: 0.04 | AD107: 1.04081 | AE107: 1.04083 | AF107: 0.00002 | AG107: 0.00002 | AH107: 0.0000
A108: 0.05 | B108: 1.05127 | C108: 1.05000 | D108: -0.00127 | E108: 0.00127 | F108: 0.0000 | H108: 0.05 | I108: 1.05127 | J108: 1.05125 | K108: -0.00002 | L108: 0.00002 | M108: 0.0000 | O108: 0.05 | P108: 1.05127 | Q108: 1.05127 | R108: 0.00000 | S108: 0.00000 | T108: 0.0000 | V108: 0.05 | W108: 1.05127 | X108: 1.05127 | Y108: 0.00000 | Z108: 0.00000 | AA108: 0.0000 | AC108: 0.05 | AD108: 1.05127 | AE108: 1.05131 | AF108: 0.00004 | AG108: 0.00004 | AH108: 0.0000
A109: 0.06 | B109: 1.06184 | C109: 1.06000 | D109: -0.00184 | E109: 0.00184 | F109: 0.0000 | H109: 0.06 | I109: 1.06184 | J109: 1.06180 | K109: -0.00004 | L109: 0.00004 | M109: 0.0000 | O109: 0.06 | P109: 1.06184 | Q109: 1.06184 | R109: 0.00000 | S109: 0.00000 | T109: 0.0000 | V109: 0.06 | W109: 1.06184 | X109: 1.06184 | Y109: 0.00000 | Z109: 0.00000 | AA109: 0.0000 | AC109: 0.06 | AD109: 1.06184 | AE109: 1.06191 | AF109: 0.00007 | AG109: 0.00007 | AH109: 0.0000
A110: 0.07 | B110: 1.07251 | C110: 1.07000 | D110: -0.00251 | E110: 0.00251 | F110: 0.0000 | H110: 0.07 | I110: 1.07251 | J110: 1.07245 | K110: -0.00006 | L110: 0.00006 | M110: 0.0000 | O110: 0.07 | P110: 1.07251 | Q110: 1.07251 | R110: 0.00000 | S110: 0.00000 | T110: 0.0000 | V110: 0.07 | W110: 1.07251 | X110: 1.07251 | Y110: 0.00000 | Z110: 0.00000 | AA110: 0.0000 | AC110: 0.07 | AD110: 1.07251 | AE110: 1.07263 | AF110: 0.00012 | AG110: 0.00012 | AH110: 0.0000
A111: 0.08 | B111: 1.08329 | C111: 1.08000 | D111: -0.00329 | E111: 0.00329 | F111: 0.0000 | H111: 0.08 | I111: 1.08329 | J111: 1.08320 | K111: -0.00009 | L111: 0.00009 | M111: 0.0000 | O111: 0.08 | P111: 1.08329 | Q111: 1.08329 | R111: -0.00000 | S111: 0.00000 | T111: 0.0000 | V111: 0.08 | W111: 1.08329 | X111: 1.08329 | Y111: 0.00000 | Z111: 0.00000 | AA111: 0.0000 | AC111: 0.08 | AD111: 1.08329 | AE111: 1.08347 | AF111: 0.00018 | AG111: 0.00018 | AH111: 0.0000
A112: 0.09 | B112: 1.09417 | C112: 1.09000 | D112: -0.00417 | E112: 0.00417 | F112: 0.0000 | H112: 0.09 | I112: 1.09417 | J112: 1.09405 | K112: -0.00012 | L112: 0.00012 | M112: 0.0000 | O112: 0.09 | P112: 1.09417 | Q112: 1.09417 | R112: -0.00000 | S112: 0.00000 | T112: 0.0000 | V112: 0.09 | W112: 1.09417 | X112: 1.09418 | Y112: 0.00000 | Z112: 0.00000 | AA112: 0.0000 | AC112: 0.09 | AD112: 1.09417 | AE112: 1.09444 | AF112: 0.00026 | AG112: 0.00026 | AH112: 0.0000
A113: 0.1 | B113: 1.10517 | C113: 1.10000 | D113: -0.00517 | E113: 0.00517 | F113: 0.0000 | H113: 0.1 | I113: 1.10517 | J113: 1.10500 | K113: -0.00017 | L113: 0.00017 | M113: 0.0000 | O113: 0.1 | P113: 1.10517 | Q113: 1.10517 | R113: -0.00000 | S113: 0.00000 | T113: 0.0000 | V113: 0.1 | W113: 1.10517 | X113: 1.10517 | Y113: 0.00000 | Z113: 0.00000 | AA113: 0.0000 | AC113: 0.1 | AD113: 1.10517 | AE113: 1.10553 | AF113: 0.00036 | AG113: 0.00036 | AH113: 0.0000
A114: 0.11 | B114: 1.11628 | C114: 1.11000 | D114: -0.00628 | E114: 0.00628 | F114: 0.0000 | H114: 0.11 | I114: 1.11628 | J114: 1.11605 | K114: -0.00023 | L114: 0.00023 | M114: 0.0000 | O114: 0.11 | P114: 1.11628 | Q114: 1.11628 | R114: -0.00000 | S114: 0.00000 | T114: 0.0000 | V114: 0.11 | W114: 1.11628 | X114: 1.11628 | Y114: 0.00000 | Z114: 0.00000 | AA114: 0.0000 | AC114: 0.11 | AD114: 1.11628 | AE114: 1.11677 | AF114: 0.00049 | AG114: 0.00049 | AH114: 0.0000
A115: 0.12 | B115: 1.12750 | C115: 1.12000 | D115: -0.00750 | E115: 0.00750 | F115: 0.0001 | H115: 0.12 | I115: 1.12750 | J115: 1.12720 | K115: -0.00030 | L115: 0.00030 | M115: 0.0000 | O115: 0.12 | P115: 1.12750 | Q115: 1.12749 | R115: -0.00000 | S115: 0.00000 | T115: 0.0000 | V115: 0.12 | W115: 1.12750 | X115: 1.12750 | Y115: 0.00001 | Z115: 0.00001 | AA115: 0.0000 | AC115: 0.12 | AD115: 1.12750 | AE115: 1.12814 | AF115: 0.00064 | AG115: 0.00064 | AH115: 0.0000
A116: 0.13 | B116: 1.13883 | C116: 1.13000 | D116: -0.00883 | E116: 0.00883 | F116: 0.0001 | H116: 0.13 | I116: 1.13883 | J116: 1.13845 | K116: -0.00038 | L116: 0.00038 | M116: 0.0000 | O116: 0.13 | P116: 1.13883 | Q116: 1.13882 | R116: -0.00000 | S116: 0.00000 | T116: 0.0000 | V116: 0.13 | W116: 1.13883 | X116: 1.13883 | Y116: 0.00001 | Z116: 0.00001 | AA116: 0.0000 | AC116: 0.13 | AD116: 1.13883 | AE116: 1.13966 | AF116: 0.00083 | AG116: 0.00083 | AH116: 0.0000
A117: 0.14 | B117: 1.15027 | C117: 1.14000 | D117: -0.01027 | E117: 0.01027 | F117: 0.0001 | H117: 0.14 | I117: 1.15027 | J117: 1.14980 | K117: -0.00047 | L117: 0.00047 | M117: 0.0000 | O117: 0.14 | P117: 1.15027 | Q117: 1.15027 | R117: -0.00001 | S117: 0.00001 | T117: 0.0000 | V117: 0.14 | W117: 1.15027 | X117: 1.15028 | Y117: 0.00001 | Z117: 0.00001 | AA117: 0.0000 | AC117: 0.14 | AD117: 1.15027 | AE117: 1.15132 | AF117: 0.00105 | AG117: 0.00105 | AH117: 0.0000
A118: 0.15 | B118: 1.16183 | C118: 1.15000 | D118: -0.01183 | E118: 0.01183 | F118: 0.0001 | H118: 0.15 | I118: 1.16183 | J118: 1.16125 | K118: -0.00058 | L118: 0.00058 | M118: 0.0000 | O118: 0.15 | P118: 1.16183 | Q118: 1.16182 | R118: -0.00001 | S118: 0.00001 | T118: 0.0000 | V118: 0.15 | W118: 1.16183 | X118: 1.16184 | Y118: 0.00001 | Z118: 0.00001 | AA118: 0.0000 | AC118: 0.15 | AD118: 1.16183 | AE118: 1.16314 | AF118: 0.00130 | AG118: 0.00130 | AH118: 0.0000
A119: 0.16 | B119: 1.17351 | C119: 1.16000 | D119: -0.01351 | E119: 0.01351 | F119: 0.0002 | H119: 0.16 | I119: 1.17351 | J119: 1.17280 | K119: -0.00071 | L119: 0.00071 | M119: 0.0000 | O119: 0.16 | P119: 1.17351 | Q119: 1.17350 | R119: -0.00001 | S119: 0.00001 | T119: 0.0000 | V119: 0.16 | W119: 1.17351 | X119: 1.17352 | Y119: 0.00001 | Z119: 0.00001 | AA119: 0.0000 | AC119: 0.16 | AD119: 1.17351 | AE119: 1.17511 | AF119: 0.00160 | AG119: 0.00160 | AH119: 0.0000
A120: 0.17 | B120: 1.18530 | C120: 1.17000 | D120: -0.01530 | E120: 0.01530 | F120: 0.0002 | H120: 0.17 | I120: 1.18530 | J120: 1.18445 | K120: -0.00085 | L120: 0.00085 | M120: 0.0000 | O120: 0.17 | P120: 1.18530 | Q120: 1.18529 | R120: -0.00002 | S120: 0.00002 | T120: 0.0000 | V120: 0.17 | W120: 1.18530 | X120: 1.18532 | Y120: 0.00001 | Z120: 0.00001 | AA120: 0.0000 | AC120: 0.17 | AD120: 1.18530 | AE120: 1.18725 | AF120: 0.00194 | AG120: 0.00194 | AH120: 0.0000
A121: 0.18 | B121: 1.19722 | C121: 1.18000 | D121: -0.01722 | E121: 0.01722 | F121: 0.0003 | H121: 0.18 | I121: 1.19722 | J121: 1.19620 | K121: -0.00102 | L121: 0.00102 | M121: 0.0000 | O121: 0.18 | P121: 1.19722 | Q121: 1.19719 | R121: -0.00003 | S121: 0.00003 | T121: 0.0000 | V121: 0.18 | W121: 1.19722 | X121: 1.19723 | Y121: 0.00002 | Z121: 0.00002 | AA121: 0.0000 | AC121: 0.18 | AD121: 1.19722 | AE121: 1.19955 | AF121: 0.00233 | AG121: 0.00233 | AH121: 0.0000
A122: 0.19 | B122: 1.20925 | C122: 1.19000 | D122: -0.01925 | E122: 0.01925 | F122: 0.0004 | H122: 0.19 | I122: 1.20925 | J122: 1.20805 | K122: -0.00120 | L122: 0.00120 | M122: 0.0000 | O122: 0.19 | P122: 1.20925 | Q122: 1.20922 | R122: -0.00003 | S122: 0.00003 | T122: 0.0000 | V122: 0.19 | W122: 1.20925 | X122: 1.20927 | Y122: 0.00002 | Z122: 0.00002 | AA122: 0.0000 | AC122: 0.19 | AD122: 1.20925 | AE122: 1.21202 | AF122: 0.00277 | AG122: 0.00277 | AH122: 0.0000
A123: 0.2 | B123: 1.22140 | C123: 1.20000 | D123: -0.02140 | E123: 0.02140 | F123: 0.0005 | H123: 0.2 | I123: 1.22140 | J123: 1.22000 | K123: -0.00140 | L123: 0.00140 | M123: 0.0000 | O123: 0.2 | P123: 1.22140 | Q123: 1.22136 | R123: -0.00004 | S123: 0.00004 | T123: 0.0000 | V123: 0.2 | W123: 1.22140 | X123: 1.22142 | Y123: 0.00002 | Z123: 0.00002 | AA123: 0.0000 | AC123: 0.2 | AD123: 1.22140 | AE123: 1.22467 | AF123: 0.00327 | AG123: 0.00327 | AH123: 0.0000
A124: 0.21 | B124: 1.23368 | C124: 1.21000 | D124: -0.02368 | E124: 0.02368 | F124: 0.0006 | H124: 0.21 | I124: 1.23368 | J124: 1.23205 | K124: -0.00163 | L124: 0.00163 | M124: 0.0000 | O124: 0.21 | P124: 1.23368 | Q124: 1.23362 | R124: -0.00005 | S124: 0.00005 | T124: 0.0000 | V124: 0.21 | W124: 1.23368 | X124: 1.23370 | Y124: 0.00002 | Z124: 0.00002 | AA124: 0.0000 | AC124: 0.21 | AD124: 1.23368 | AE124: 1.23751 | AF124: 0.00383 | AG124: 0.00383 | AH124: 0.0000
A125: 0.22 | B125: 1.24608 | C125: 1.22000 | D125: -0.02608 | E125: 0.02608 | F125: 0.0007 | H125: 0.22 | I125: 1.24608 | J125: 1.24420 | K125: -0.00188 | L125: 0.00188 | M125: 0.0000 | O125: 0.22 | P125: 1.24608 | Q125: 1.24601 | R125: -0.00007 | S125: 0.00007 | T125: 0.0000 | V125: 0.22 | W125: 1.24608 | X125: 1.24610 | Y125: 0.00003 | Z125: 0.00003 | AA125: 0.0000 | AC125: 0.22 | AD125: 1.24608 | AE125: 1.25053 | AF125: 0.00445 | AG125: 0.00445 | AH125: 0.0000
A126: 0.23 | B126: 1.25860 | C126: 1.23000 | D126: -0.02860 | E126: 0.02860 | F126: 0.0008 | H126: 0.23 | I126: 1.25860 | J126: 1.25645 | K126: -0.00215 | L126: 0.00215 | M126: 0.0000 | O126: 0.23 | P126: 1.25860 | Q126: 1.25852 | R126: -0.00008 | S126: 0.00008 | T126: 0.0000 | V126: 0.23 | W126: 1.25860 | X126: 1.25863 | Y126: 0.00003 | Z126: 0.00003 | AA126: 0.0000 | AC126: 0.23 | AD126: 1.25860 | AE126: 1.26374 | AF126: 0.00514 | AG126: 0.00514 | AH126: 0.0000
A127: 0.24 | B127: 1.27125 | C127: 1.24000 | D127: -0.03125 | E127: 0.03125 | F127: 0.0010 | H127: 0.24 | I127: 1.27125 | J127: 1.26880 | K127: -0.00245 | L127: 0.00245 | M127: 0.0000 | O127: 0.24 | P127: 1.27125 | Q127: 1.27115 | R127: -0.00010 | S127: 0.00010 | T127: 0.0000 | V127: 0.24 | W127: 1.27125 | X127: 1.27128 | Y127: 0.00003 | Z127: 0.00003 | AA127: 0.0000 | AC127: 0.24 | AD127: 1.27125 | AE127: 1.27715 | AF127: 0.00590 | AG127: 0.00590 | AH127: 0.0000
A128: 0.25 | B128: 1.28403 | C128: 1.25000 | D128: -0.03403 | E128: 0.03403 | F128: 0.0012 | H128: 0.25 | I128: 1.28403 | J128: 1.28125 | K128: -0.00278 | L128: 0.00278 | M128: 0.0000 | O128: 0.25 | P128: 1.28403 | Q128: 1.28391 | R128: -0.00012 | S128: 0.00012 | T128: 0.0000 | V128: 0.25 | W128: 1.28403 | X128: 1.28406 | Y128: 0.00004 | Z128: 0.00004 | AA128: 0.0000 | AC128: 0.25 | AD128: 1.28403 | AE128: 1.29077 | AF128: 0.00674 | AG128: 0.00674 | AH128: 0.0000
A129: 0.26 | B129: 1.29693 | C129: 1.26000 | D129: -0.03693 | E129: 0.03693 | F129: 0.0014 | H129: 0.26 | I129: 1.29693 | J129: 1.29380 | K129: -0.00313 | L129: 0.00313 | M129: 0.0000 | O129: 0.26 | P129: 1.29693 | Q129: 1.29679 | R129: -0.00014 | S129: 0.00014 | T129: 0.0000 | V129: 0.26 | W129: 1.29693 | X129: 1.29697 | Y129: 0.00004 | Z129: 0.00004 | AA129: 0.0000 | AC129: 0.26 | AD129: 1.29693 | AE129: 1.30460 | AF129: 0.00767 | AG129: 0.00767 | AH129: 0.0001
A130: 0.27 | B130: 1.30996 | C130: 1.27000 | D130: -0.03996 | E130: 0.03996 | F130: 0.0016 | H130: 0.27 | I130: 1.30996 | J130: 1.30645 | K130: -0.00351 | L130: 0.00351 | M130: 0.0000 | O130: 0.27 | P130: 1.30996 | Q130: 1.30980 | R130: -0.00017 | S130: 0.00017 | T130: 0.0000 | V130: 0.27 | W130: 1.30996 | X130: 1.31001 | Y130: 0.00004 | Z130: 0.00004 | AA130: 0.0000 | AC130: 0.27 | AD130: 1.30996 | AE130: 1.31864 | AF130: 0.00867 | AG130: 0.00867 | AH130: 0.0001
A131: 0.28 | B131: 1.32313 | C131: =aa00+bb00*A131 -> 1.28000 | D131: -0.04313 | E131: 0.04313 | F131: 0.0019 | H131: 0.28 | I131: 1.32313 | J131: =a0+b0*H131+c0*H131^2 -> 1.31920 | K131: -0.00393 | L131: 0.00393 | M131: 0.0000 | O131: 0.28 | P131: 1.32313 | Q131: =a00+b00*O131+c00*O131^2+d00*A131^3 -> 1.32293 | R131: -0.00020 | S131: 0.00020 | T131: 0.0000 | V131: 0.28 | W131: 1.32313 | X131: =a000+b000*V131+c000*V131^2+d000*O131^3+e000*O131^4 -> 1.32318 | Y131: 0.00005 | Z131: 0.00005 | AA131: 0.0000 | AC131: 0.28 | AD131: 1.32313 | AE131: =a0000+b0000*AC131+c0000*AC131^2+d0000*AC131^3+e0000*AC131^4+f0000*AC131^5 -> 1.33290 | AF131: 0.00977 | AG131: 0.00977 | AH131: 0.0001
A132: =A131+(bb0-aa0)/200 -> 0.29 | B132: =EXP(A132) -> 1.33643 | C132: 1.29000 | D132: =C132-B132 -> -0.04643 | E132: =ABS(D132) -> 0.04643 | F132: =D132^2 -> 0.0022 | H132: =H131+(b-a)/200 -> 0.29 | I132: =EXP(H132) -> 1.33643 | J132: 1.33205 | K132: =J132-I132 -> -0.00438 | L132: =ABS(K132) -> 0.00438 | M132: =K132^2 -> 0.0000 | O132: =O131+(bb-aa)/200 -> 0.29 | P132: =EXP(O132) -> 1.33643 | Q132: 1.33620 | R132: =Q132-P132 -> -0.00023 | S132: =ABS(R132) -> 0.00023 | T132: =R132^2 -> 0.0000 | V132: =V131+(bbb-aaa)/200 -> 0.29 | W132: =EXP(V132) -> 1.33643 | X132: 1.33648 | Y132: =X132-W132 -> 0.00005 | Z132: =ABS(Y132) -> 0.00005 | AA132: =Y132^2 -> 0.0000 | AC132: =AC131+(bbbb-aaaa)/200 -> 0.29 | AD132: =EXP(AC132) -> 1.33643 | AE132: 1.34740 | AF132: =AE132-AD132 -> 0.01097 | AG132: =ABS(AF132) -> 0.01097 | AH132: =AF132^2 -> 0.0001
A133: 0.3 | B133: 1.34986 | C133: 1.30000 | D133: -0.04986 | E133: 0.04986 | F133: 0.0025 | H133: 0.3 | I133: 1.34986 | J133: 1.34500 | K133: -0.00486 | L133: 0.00486 | M133: 0.0000 | O133: 0.3 | P133: 1.34986 | Q133: 1.34959 | R133: -0.00027 | S133: 0.00027 | T133: 0.0000 | V133: 0.3 | W133: 1.34986 | X133: 1.34991 | Y133: 0.00006 | Z133: 0.00006 | AA133: 0.0000 | AC133: 0.3 | AD133: 1.34986 | AE133: 1.36212 | AF133: 0.01227 | AG133: 0.01227 | AH133: 0.0002
A134: 0.31 | B134: 1.36343 | C134: 1.31000 | D134: -0.05343 | E134: 0.05343 | F134: 0.0029 | H134: 0.31 | I134: 1.36343 | J134: 1.35805 | K134: -0.00538 | L134: 0.00538 | M134: 0.0000 | O134: 0.31 | P134: 1.36343 | Q134: 1.36311 | R134: -0.00031 | S134: 0.00031 | T134: 0.0000 | V134: 0.31 | W134: 1.36343 | X134: 1.36348 | Y134: 0.00006 | Z134: 0.00006 | AA134: 0.0000 | AC134: 0.31 | AD134: 1.36343 | AE134: 1.37709 | AF134: 0.01367 | AG134: 0.01367 | AH134: 0.0002
A135: 0.32 | B135: 1.37713 | C135: 1.32000 | D135: -0.05713 | E135: 0.05713 | F135: 0.0033 | H135: 0.32 | I135: 1.37713 | J135: 1.37120 | K135: -0.00593 | L135: 0.00593 | M135: 0.0000 | O135: 0.32 | P135: 1.37713 | Q135: 1.37677 | R135: -0.00036 | S135: 0.00036 | T135: 0.0000 | V135: 0.32 | W135: 1.37713 | X135: 1.37719 | Y135: 0.00006 | Z135: 0.00006 | AA135: 0.0000 | AC135: 0.32 | AD135: 1.37713 | AE135: 1.39231 | AF135: 0.01518 | AG135: 0.01518 | AH135: 0.0002
A136: 0.33 | B136: 1.39097 | C136: 1.33000 | D136: -0.06097 | E136: 0.06097 | F136: 0.0037 | H136: 0.33 | I136: 1.39097 | J136: 1.38445 | K136: -0.00652 | L136: 0.00652 | M136: 0.0000 | O136: 0.33 | P136: 1.39097 | Q136: 1.39056 | R136: -0.00041 | S136: 0.00041 | T136: 0.0000 | V136: 0.33 | W136: 1.39097 | X136: 1.39103 | Y136: 0.00007 | Z136: 0.00007 | AA136: 0.0000 | AC136: 0.33 | AD136: 1.39097 | AE136: 1.40778 | AF136: 0.01681 | AG136: 0.01681 | AH136: 0.0003
A137: 0.34 | B137: 1.40495 | C137: 1.34000 | D137: -0.06495 | E137: 0.06495 | F137: 0.0042 | H137: 0.34 | I137: 1.40495 | J137: 1.39780 | K137: -0.00715 | L137: 0.00715 | M137: 0.0001 | O137: 0.34 | P137: 1.40495 | Q137: 1.40448 | R137: -0.00047 | S137: 0.00047 | T137: 0.0000 | V137: 0.34 | W137: 1.40495 | X137: 1.40502 | Y137: 0.00007 | Z137: 0.00007 | AA137: 0.0000 | AC137: 0.34 | AD137: 1.40495 | AE137: 1.42351 | AF137: 0.01857 | AG137: 0.01857 | AH137: 0.0003
A138: 0.35 | B138: 1.41907 | C138: 1.35000 | D138: -0.06907 | E138: 0.06907 | F138: 0.0048 | H138: 0.35 | I138: 1.41907 | J138: 1.41125 | K138: -0.00782 | L138: 0.00782 | M138: 0.0001 | O138: 0.35 | P138: 1.41907 | Q138: 1.41854 | R138: -0.00053 | S138: 0.00053 | T138: 0.0000 | V138: 0.35 | W138: 1.41907 | X138: 1.41914 | Y138: 0.00007 | Z138: 0.00007 | AA138: 0.0000 | AC138: 0.35 | AD138: 1.41907 | AE138: 1.43951 | AF138: 0.02045 | AG138: 0.02045 | AH138: 0.0004
A139: 0.36 | B139: 1.43333 | C139: 1.36000 | D139: -0.07333 | E139: 0.07333 | F139: 0.0054 | H139: 0.36 | I139: 1.43333 | J139: 1.42480 | K139: -0.00853 | L139: 0.00853 | M139: 0.0001 | O139: 0.36 | P139: 1.43333 | Q139: 1.43273 | R139: -0.00060 | S139: 0.00060 | T139: 0.0000 | V139: 0.36 | W139: 1.43333 | X139: 1.43340 | Y139: 0.00007 | Z139: 0.00007 | AA139: 0.0000 | AC139: 0.36 | AD139: 1.43333 | AE139: 1.45579 | AF139: 0.02246 | AG139: 0.02246 | AH139: 0.0005
A140: 0.37 | B140: 1.44773 | C140: 1.37000 | D140: -0.07773 | E140: 0.07773 | F140: 0.0060 | H140: 0.37 | I140: 1.44773 | J140: 1.43845 | K140: -0.00928 | L140: 0.00928 | M140: 0.0001 | O140: 0.37 | P140: 1.44773 | Q140: 1.44706 | R140: -0.00067 | S140: 0.00067 | T140: 0.0000 | V140: 0.37 | W140: 1.44773 | X140: 1.44781 | Y140: 0.00008 | Z140: 0.00008 | AA140: 0.0000 | AC140: 0.37 | AD140: 1.44773 | AE140: 1.47235 | AF140: 0.02461 | AG140: 0.02461 | AH140: 0.0006
A141: 0.38 | B141: 1.46228 | C141: 1.38000 | D141: -0.08228 | E141: 0.08228 | F141: 0.0068 | H141: 0.38 | I141: 1.46228 | J141: 1.45220 | K141: -0.01008 | L141: 0.01008 | M141: 0.0001 | O141: 0.38 | P141: 1.46228 | Q141: 1.46153 | R141: -0.00076 | S141: 0.00076 | T141: 0.0000 | V141: 0.38 | W141: 1.46228 | X141: 1.46236 | Y141: 0.00008 | Z141: 0.00008 | AA141: 0.0000 | AC141: 0.38 | AD141: 1.46228 | AE141: 1.48920 | AF141: 0.02691 | AG141: 0.02691 | AH141: 0.0007
A142: 0.39 | B142: 1.47698 | C142: 1.39000 | D142: -0.08698 | E142: 0.08698 | F142: 0.0076 | H142: 0.39 | I142: 1.47698 | J142: 1.46605 | K142: -0.01093 | L142: 0.01093 | M142: 0.0001 | O142: 0.39 | P142: 1.47698 | Q142: 1.47613 | R142: -0.00085 | S142: 0.00085 | T142: 0.0000 | V142: 0.39 | W142: 1.47698 | X142: 1.47706 | Y142: 0.00008 | Z142: 0.00008 | AA142: 0.0000 | AC142: 0.39 | AD142: 1.47698 | AE142: 1.50634 | AF142: 0.02936 | AG142: 0.02936 | AH142: 0.0009
A143: 0.4 | B143: 1.49182 | C143: 1.40000 | D143: -0.09182 | E143: 0.09182 | F143: 0.0084 | H143: 0.4 | I143: 1.49182 | J143: 1.48000 | K143: -0.01182 | L143: 0.01182 | M143: 0.0001 | O143: 0.4 | P143: 1.49182 | Q143: 1.49088 | R143: -0.00094 | S143: 0.00094 | T143: 0.0000 | V143: 0.4 | W143: 1.49182 | X143: 1.49190 | Y143: 0.00008 | Z143: 0.00008 | AA143: 0.0000 | AC143: 0.4 | AD143: 1.49182 | AE143: 1.52379 | AF143: 0.03197 | AG143: 0.03197 | AH143: 0.0010
A144: 0.41 | B144: 1.50682 | C144: 1.41000 | D144: -0.09682 | E144: 0.09682 | F144: 0.0094 | H144: 0.41 | I144: 1.50682 | J144: 1.49405 | K144: -0.01277 | L144: 0.01277 | M144: 0.0002 | O144: 0.41 | P144: 1.50682 | Q144: 1.50577 | R144: -0.00105 | S144: 0.00105 | T144: 0.0000 | V144: 0.41 | W144: 1.50682 | X144: 1.50690 | Y144: 0.00008 | Z144: 0.00008 | AA144: 0.0000 | AC144: 0.41 | AD144: 1.50682 | AE144: 1.54156 | AF144: 0.03474 | AG144: 0.03474 | AH144: 0.0012
A145: 0.42 | B145: 1.52196 | C145: 1.42000 | D145: -0.10196 | E145: 0.10196 | F145: 0.0104 | H145: 0.42 | I145: 1.52196 | J145: 1.50820 | K145: -0.01376 | L145: 0.01376 | M145: 0.0002 | O145: 0.42 | P145: 1.52196 | Q145: 1.52079 | R145: -0.00117 | S145: 0.00117 | T145: 0.0000 | V145: 0.42 | W145: 1.52196 | X145: 1.52204 | Y145: 0.00008 | Z145: 0.00008 | AA145: 0.0000 | AC145: 0.42 | AD145: 1.52196 | AE145: 1.55964 | AF145: 0.03768 | AG145: 0.03768 | AH145: 0.0014
A146: 0.43 | B146: 1.53726 | C146: 1.43000 | D146: -0.10726 | E146: 0.10726 | F146: 0.0115 | H146: 0.43 | I146: 1.53726 | J146: 1.52245 | K146: -0.01481 | L146: 0.01481 | M146: 0.0002 | O146: 0.43 | P146: 1.53726 | Q146: 1.53597 | R146: -0.00129 | S146: 0.00129 | T146: 0.0000 | V146: 0.43 | W146: 1.53726 | X146: 1.53733 | Y146: 0.00008 | Z146: 0.00008 | AA146: 0.0000 | AC146: 0.43 | AD146: 1.53726 | AE146: 1.57805 | AF146: 0.04079 | AG146: 0.04079 | AH146: 0.0017
A147: 0.44 | B147: 1.55271 | C147: 1.44000 | D147: -0.11271 | E147: 0.11271 | F147: 0.0127 | H147: 0.44 | I147: 1.55271 | J147: 1.53680 | K147: -0.01591 | L147: 0.01591 | M147: 0.0003 | O147: 0.44 | P147: 1.55271 | Q147: 1.55128 | R147: -0.00143 | S147: 0.00143 | T147: 0.0000 | V147: 0.44 | W147: 1.55271 | X147: 1.55278 | Y147: 0.00007 | Z147: 0.00007 | AA147: 0.0000 | AC147: 0.44 | AD147: 1.55271 | AE147: 1.59680 | AF147: 0.04409 | AG147: 0.04409 | AH147: 0.0019
A148: 0.45 | B148: 1.56831 | C148: 1.45000 | D148: -0.11831 | E148: 0.11831 | F148: 0.0140 | H148: 0.45 | I148: 1.56831 | J148: 1.55125 | K148: -0.01706 | L148: 0.01706 | M148: 0.0003 | O148: 0.45 | P148: 1.56831 | Q148: 1.56674 | R148: -0.00157 | S148: 0.00157 | T148: 0.0000 | V148: 0.45 | W148: 1.56831 | X148: 1.56838 | Y148: 0.00007 | Z148: 0.00007 | AA148: 0.0000 | AC148: 0.45 | AD148: 1.56831 | AE148: 1.61589 | AF148: 0.04758 | AG148: 0.04758 | AH148: 0.0023
A149: 0.46 | B149: 1.58407 | C149: 1.46000 | D149: -0.12407 | E149: 0.12407 | F149: 0.0154 | H149: 0.46 | I149: 1.58407 | J149: 1.56580 | K149: -0.01827 | L149: 0.01827 | M149: 0.0003 | O149: 0.46 | P149: 1.58407 | Q149: 1.58235 | R149: -0.00173 | S149: 0.00173 | T149: 0.0000 | V149: 0.46 | W149: 1.58407 | X149: 1.58414 | Y149: 0.00006 | Z149: 0.00006 | AA149: 0.0000 | AC149: 0.46 | AD149: 1.58407 | AE149: 1.63534 | AF149: 0.05126 | AG149: 0.05126 | AH149: 0.0026
A150: 0.47 | B150: 1.59999 | C150: 1.47000 | D150: -0.12999 | E150: 0.12999 | F150: 0.0169 | H150: 0.47 | I150: 1.59999 | J150: 1.58045 | K150: -0.01954 | L150: 0.01954 | M150: 0.0004 | O150: 0.47 | P150: 1.59999 | Q150: 1.59810 | R150: -0.00189 | S150: 0.00189 | T150: 0.0000 | V150: 0.47 | W150: 1.59999 | X150: 1.60005 | Y150: 0.00006 | Z150: 0.00006 | AA150: 0.0000 | AC150: 0.47 | AD150: 1.59999 | AE150: 1.65514 | AF150: 0.05515 | AG150: 0.05515 | AH150: 0.0030
A151: 0.48 | B151: 1.61607 | C151: 1.48000 | D151: -0.13607 | E151: 0.13607 | F151: 0.0185 | H151: 0.48 | I151: 1.61607 | J151: 1.59520 | K151: -0.02087 | L151: 0.02087 | M151: 0.0004 | O151: 0.48 | P151: 1.61607 | Q151: 1.61400 | R151: -0.00207 | S151: 0.00207 | T151: 0.0000 | V151: 0.48 | W151: 1.61607 | X151: 1.61612 | Y151: 0.00005 | Z151: 0.00005 | AA151: 0.0000 | AC151: 0.48 | AD151: 1.61607 | AE151: 1.67532 | AF151: 0.05924 | AG151: 0.05924 | AH151: 0.0035
A152: 0.49 | B152: 1.63232 | C152: 1.49000 | D152: -0.14232 | E152: 0.14232 | F152: 0.0203 | H152: 0.49 | I152: 1.63232 | J152: 1.61005 | K152: -0.02227 | L152: 0.02227 | M152: 0.0005 | O152: 0.49 | P152: 1.63232 | Q152: 1.63005 | R152: -0.00227 | S152: 0.00227 | T152: 0.0000 | V152: 0.49 | W152: 1.63232 | X152: 1.63236 | Y152: 0.00004 | Z152: 0.00004 | AA152: 0.0000 | AC152: 0.49 | AD152: 1.63232 | AE152: 1.69587 | AF152: 0.06356 | AG152: 0.06356 | AH152: 0.0040
A153: 0.5 | B153: 1.64872 | C153: 1.50000 | D153: -0.14872 | E153: 0.14872 | F153: 0.0221 | H153: 0.5 | I153: 1.64872 | J153: 1.62500 | K153: -0.02372 | L153: 0.02372 | M153: 0.0006 | O153: 0.5 | P153: 1.64872 | Q153: 1.64625 | R153: -0.00247 | S153: 0.00247 | T153: 0.0000 | V153: 0.5 | W153: 1.64872 | X153: 1.64875 | Y153: 0.00003 | Z153: 0.00003 | AA153: 0.0000 | AC153: 0.5 | AD153: 1.64872 | AE153: 1.71681 | AF153: 0.06809 | AG153: 0.06809 | AH153: 0.0046
A154: 0.51 | B154: 1.66529 | C154: 1.51000 | D154: -0.15529 | E154: 0.15529 | F154: 0.0241 | H154: 0.51 | I154: 1.66529 | J154: 1.64005 | K154: -0.02524 | L154: 0.02524 | M154: 0.0006 | O154: 0.51 | P154: 1.66529 | Q154: 1.66260 | R154: -0.00269 | S154: 0.00269 | T154: 0.0000 | V154: 0.51 | W154: 1.66529 | X154: 1.66531 | Y154: 0.00002 | Z154: 0.00002 | AA154: 0.0000 | AC154: 0.51 | AD154: 1.66529 | AE154: 1.73815 | AF154: 0.07286 | AG154: 0.07286 | AH154: 0.0053
A155: 0.52 | B155: 1.68203 | C155: 1.52000 | D155: -0.16203 | E155: 0.16203 | F155: 0.0263 | H155: 0.52 | I155: 1.68203 | J155: 1.65520 | K155: -0.02683 | L155: 0.02683 | M155: 0.0007 | O155: 0.52 | P155: 1.68203 | Q155: 1.67910 | R155: -0.00292 | S155: 0.00292 | T155: 0.0000 | V155: 0.52 | W155: 1.68203 | X155: 1.68203 | Y155: 0.00000 | Z155: 0.00000 | AA155: 0.0000 | AC155: 0.52 | AD155: 1.68203 | AE155: 1.75989 | AF155: 0.07786 | AG155: 0.07786 | AH155: 0.0061
A156: 0.53 | B156: 1.69893 | C156: 1.53000 | D156: -0.16893 | E156: 0.16893 | F156: 0.0285 | H156: 0.53 | I156: 1.69893 | J156: 1.67045 | K156: -0.02848 | L156: 0.02848 | M156: 0.0008 | O156: 0.53 | P156: 1.69893 | Q156: 1.69576 | R156: -0.00317 | S156: 0.00317 | T156: 0.0000 | V156: 0.53 | W156: 1.69893 | X156: 1.69892 | Y156: -0.00002 | Z156: 0.00002 | AA156: 0.0000 | AC156: 0.53 | AD156: 1.69893 | AE156: 1.78205 | AF156: 0.08312 | AG156: 0.08312 | AH156: 0.0069
A157: 0.54 | B157: 1.71601 | C157: 1.54000 | D157: -0.17601 | E157: 0.17601 | F157: 0.0310 | H157: 0.54 | I157: 1.71601 | J157: 1.68580 | K157: -0.03021 | L157: 0.03021 | M157: 0.0009 | O157: 0.54 | P157: 1.71601 | Q157: 1.71257 | R157: -0.00344 | S157: 0.00344 | T157: 0.0000 | V157: 0.54 | W157: 1.71601 | X157: 1.71597 | Y157: -0.00004 | Z157: 0.00004 | AA157: 0.0000 | AC157: 0.54 | AD157: 1.71601 | AE157: 1.80463 | AF157: 0.08862 | AG157: 0.08862 | AH157: 0.0079
A158: 0.55 | B158: 1.73325 | C158: 1.55000 | D158: -0.18325 | E158: 0.18325 | F158: 0.0336 | H158: 0.55 | I158: 1.73325 | J158: 1.70125 | K158: -0.03200 | L158: 0.03200 | M158: 0.0010 | O158: 0.55 | P158: 1.73325 | Q158: 1.72953 | R158: -0.00372 | S158: 0.00372 | T158: 0.0000 | V158: 0.55 | W158: 1.73325 | X158: 1.73319 | Y158: -0.00006 | Z158: 0.00006 | AA158: 0.0000 | AC158: 0.55 | AD158: 1.73325 | AE158: 1.82764 | AF158: 0.09439 | AG158: 0.09439 | AH158: 0.0089
A159: 0.56 | B159: 1.75067 | C159: 1.56000 | D159: -0.19067 | E159: 0.19067 | F159: 0.0364 | H159: 0.56 | I159: 1.75067 | J159: 1.71680 | K159: -0.03387 | L159: 0.03387 | M159: 0.0011 | O159: 0.56 | P159: 1.75067 | Q159: 1.74665 | R159: -0.00402 | S159: 0.00402 | T159: 0.0000 | V159: 0.56 | W159: 1.75067 | X159: 1.75059 | Y159: -0.00008 | Z159: 0.00008 | AA159: 0.0000 | AC159: 0.56 | AD159: 1.75067 | AE159: 1.85110 | AF159: 0.10042 | AG159: 0.10042 | AH159: 0.0101
A160: 0.57 | B160: 1.76827 | C160: 1.57000 | D160: -0.19827 | E160: 0.19827 | F160: 0.0393 | H160: 0.57 | I160: 1.76827 | J160: 1.73245 | K160: -0.03582 | L160: 0.03582 | M160: 0.0013 | O160: 0.57 | P160: 1.76827 | Q160: 1.76393 | R160: -0.00433 | S160: 0.00433 | T160: 0.0000 | V160: 0.57 | W160: 1.76827 | X160: 1.76816 | Y160: -0.00011 | Z160: 0.00011 | AA160: 0.0000 | AC160: 0.57 | AD160: 1.76827 | AE160: 1.87500 | AF160: 0.10674 | AG160: 0.10674 | AH160: 0.0114
A161: 0.58 | B161: 1.78604 | C161: 1.58000 | D161: -0.20604 | E161: 0.20604 | F161: 0.0425 | H161: 0.58 | I161: 1.78604 | J161: 1.74820 | K161: -0.03784 | L161: 0.03784 | M161: 0.0014 | O161: 0.58 | P161: 1.78604 | Q161: 1.78137 | R161: -0.00467 | S161: 0.00467 | T161: 0.0000 | V161: 0.58 | W161: 1.78604 | X161: 1.78590 | Y161: -0.00014 | Z161: 0.00014 | AA161: 0.0000 | AC161: 0.58 | AD161: 1.78604 | AE161: 1.89937 | AF161: 0.11333 | AG161: 0.11333 | AH161: 0.0128
A162: 0.59 | B162: 1.80399 | C162: 1.59000 | D162: -0.21399 | E162: 0.21399 | F162: 0.0458 | H162: 0.59 | I162: 1.80399 | J162: 1.76405 | K162: -0.03994 | L162: 0.03994 | M162: 0.0016 | O162: 0.59 | P162: 1.80399 | Q162: 1.79896 | R162: -0.00502 | S162: 0.00502 | T162: 0.0000 | V162: 0.59 | W162: 1.80399 | X162: 1.80381 | Y162: -0.00018 | Z162: 0.00018 | AA162: 0.0000 | AC162: 0.59 | AD162: 1.80399 | AE162: 1.92421 | AF162: 0.12022 | AG162: 0.12022 | AH162: 0.0145
A163: 0.6 | B163: 1.82212 | C163: 1.60000 | D163: -0.22212 | E163: 0.22212 | F163: 0.0493 | H163: 0.6 | I163: 1.82212 | J163: 1.78000 | K163: -0.04212 | L163: 0.04212 | M163: 0.0018 | O163: 0.6 | P163: 1.82212 | Q163: 1.81672 | R163: -0.00540 | S163: 0.00540 | T163: 0.0000 | V163: 0.6 | W163: 1.82212 | X163: 1.82190 | Y163: -0.00021 | Z163: 0.00021 | AA163: 0.0000 | AC163: 0.6 | AD163: 1.82212 | AE163: 1.94953 | AF163: 0.12742 | AG163: 0.12742 | AH163: 0.0162
A164: =A163+(bb0-aa0)/200 -> 0.61 | B164: 1.84043 | C164: 1.61000 | D164: -0.23043 | E164: 0.23043 | F164: 0.0531 | H164: 0.61 | I164: 1.84043 | J164: 1.79605 | K164: -0.04438 | L164: 0.04438 | M164: 0.0020 | O164: =O163+(bb-aa)/200 -> 0.61 | P164: 1.84043 | Q164: 1.83464 | R164: -0.00579 | S164: 0.00579 | T164: 0.0000 | V164: =V163+(bbb-aaa)/200 -> 0.61 | W164: 1.84043 | X164: 1.84018 | Y164: -0.00026 | Z164: 0.00026 | AA164: 0.0000 | AC164: =AC163+(bbbb-aaaa)/200 -> 0.61 | AD164: 1.84043 | AE164: 1.97535 | AF164: 0.13492 | AG164: 0.13492 | AH164: 0.0182
A165: 0.62 | B165: 1.85893 | C165: 1.62000 | D165: -0.23893 | E165: 0.23893 | F165: 0.0571 | H165: 0.62 | I165: 1.85893 | J165: 1.81220 | K165: -0.04673 | L165: 0.04673 | M165: 0.0022 | O165: 0.62 | P165: 1.85893 | Q165: 1.85272 | R165: -0.00621 | S165: 0.00621 | T165: 0.0000 | V165: 0.62 | W165: 1.85893 | X165: 1.85863 | Y165: -0.00030 | Z165: 0.00030 | AA165: 0.0000 | AC165: 0.62 | AD165: 1.85893 | AE165: 2.00166 | AF165: 0.14274 | AG165: 0.14274 | AH165: 0.0204
A166: 0.63 | B166: 1.87761 | C166: 1.63000 | D166: -0.24761 | E166: 0.24761 | F166: 0.0613 | H166: 0.63 | I166: 1.87761 | J166: 1.82845 | K166: -0.04916 | L166: 0.04916 | M166: 0.0024 | O166: 0.63 | P166: 1.87761 | Q166: 1.87096 | R166: -0.00665 | S166: 0.00665 | T166: 0.0000 | V166: 0.63 | W166: 1.87761 | X166: 1.87726 | Y166: -0.00035 | Z166: 0.00035 | AA166: 0.0000 | AC166: 0.63 | AD166: 1.87761 | AE166: 2.02849 | AF166: 0.15088 | AG166: 0.15088 | AH166: 0.0228
A167: 0.64 | B167: 1.89648 | C167: 1.64000 | D167: -0.25648 | E167: 0.25648 | F167: 0.0658 | H167: 0.64 | I167: 1.89648 | J167: 1.84480 | K167: -0.05168 | L167: 0.05168 | M167: 0.0027 | O167: 0.64 | P167: 1.89648 | Q167: 1.88936 | R167: -0.00712 | S167: 0.00712 | T167: 0.0001 | V167: 0.64 | W167: 1.89648 | X167: 1.89608 | Y167: -0.00041 | Z167: 0.00041 | AA167: 0.0000 | AC167: 0.64 | AD167: 1.89648 | AE167: 2.05585 | AF167: 0.15937 | AG167: 0.15937 | AH167: 0.0254
A168: 0.65 | B168: 1.91554 | C168: 1.65000 | D168: -0.26554 | E168: 0.26554 | F168: 0.0705 | H168: 0.65 | I168: 1.91554 | J168: 1.86125 | K168: -0.05429 | L168: 0.05429 | M168: 0.0029 | O168: 0.65 | P168: 1.91554 | Q168: 1.90794 | R168: -0.00760 | S168: 0.00760 | T168: 0.0001 | V168: 0.65 | W168: 1.91554 | X168: 1.91508 | Y168: -0.00046 | Z168: 0.00046 | AA168: 0.0000 | AC168: 0.65 | AD168: 1.91554 | AE168: 2.08373 | AF168: 0.16819 | AG168: 0.16819 | AH168: 0.0283
A169: 0.66 | B169: 1.93479 | C169: 1.66000 | D169: -0.27479 | E169: 0.27479 | F169: 0.0755 | H169: 0.66 | I169: 1.93479 | J169: 1.87780 | K169: -0.05699 | L169: 0.05699 | M169: 0.0032 | O169: 0.66 | P169: 1.93479 | Q169: 1.92667 | R169: -0.00812 | S169: 0.00812 | T169: 0.0001 | V169: 0.66 | W169: 1.93479 | X169: 1.93426 | Y169: -0.00053 | Z169: 0.00053 | AA169: 0.0000 | AC169: 0.66 | AD169: 1.93479 | AE169: 2.11216 | AF169: 0.17737 | AG169: 0.17737 | AH169: 0.0315
A170: 0.67 | B170: 1.95424 | C170: 1.67000 | D170: -0.28424 | E170: 0.28424 | F170: 0.0808 | H170: 0.67 | I170: 1.95424 | J170: 1.89445 | K170: -0.05979 | L170: 0.05979 | M170: 0.0036 | O170: 0.67 | P170: 1.95424 | Q170: 1.94558 | R170: -0.00866 | S170: 0.00866 | T170: 0.0001 | V170: 0.67 | W170: 1.95424 | X170: 1.95364 | Y170: -0.00060 | Z170: 0.00060 | AA170: 0.0000 | AC170: 0.67 | AD170: 1.95424 | AE170: 2.14115 | AF170: 0.18691 | AG170: 0.18691 | AH170: 0.0349
A171: 0.68 | B171: 1.97388 | C171: 1.68000 | D171: -0.29388 | E171: 0.29388 | F171: 0.0864 | H171: 0.68 | I171: 1.97388 | J171: 1.91120 | K171: -0.06268 | L171: 0.06268 | M171: 0.0039 | O171: 0.68 | P171: 1.97388 | Q171: 1.96465 | R171: -0.00922 | S171: 0.00922 | T171: 0.0001 | V171: 0.68 | W171: 1.97388 | X171: 1.97321 | Y171: -0.00067 | Z171: 0.00067 | AA171: 0.0000 | AC171: 0.68 | AD171: 1.97388 | AE171: 2.17070 | AF171: 0.19682 | AG171: 0.19682 | AH171: 0.0387
A172: 0.69 | B172: 1.99372 | C172: 1.69000 | D172: -0.30372 | E172: 0.30372 | F172: 0.0922 | H172: 0.69 | I172: 1.99372 | J172: 1.92805 | K172: -0.06567 | L172: 0.06567 | M172: 0.0043 | O172: 0.69 | P172: 1.99372 | Q172: 1.98390 | R172: -0.00982 | S172: 0.00982 | T172: 0.0001 | V172: 0.69 | W172: 1.99372 | X172: 1.99296 | Y172: -0.00075 | Z172: 0.00075 | AA172: 0.0000 | AC172: 0.69 | AD172: 1.99372 | AE172: 2.20083 | AF172: 0.20711 | AG172: 0.20711 | AH172: 0.0429
A173: 0.7 | B173: 2.01375 | C173: 1.70000 | D173: -0.31375 | E173: 0.31375 | F173: 0.0984 | H173: 0.7 | I173: 2.01375 | J173: 1.94500 | K173: -0.06875 | L173: 0.06875 | M173: 0.0047 | O173: 0.7 | P173: 2.01375 | Q173: 2.00331 | R173: -0.01044 | S173: 0.01044 | T173: 0.0001 | V173: 0.7 | W173: 2.01375 | X173: 2.01291 | Y173: -0.00084 | Z173: 0.00084 | AA173: 0.0000 | AC173: 0.7 | AD173: 2.01375 | AE173: 2.23155 | AF173: 0.21780 | AG173: 0.21780 | AH173: 0.0474
A174: 0.71 | B174: 2.03399 | C174: 1.71000 | D174: -0.32399 | E174: 0.32399 | F174: 0.1050 | H174: 0.71 | I174: 2.03399 | J174: 1.96205 | K174: -0.07194 | L174: 0.07194 | M174: 0.0052 | O174: 0.71 | P174: 2.03399 | Q174: 2.02289 | R174: -0.01110 | S174: 0.01110 | T174: 0.0001 | V174: 0.71 | W174: 2.03399 | X174: 2.03306 | Y174: -0.00093 | Z174: 0.00093 | AA174: 0.0000 | AC174: 0.71 | AD174: 2.03399 | AE174: 2.26287 | AF174: 0.22888 | AG174: 0.22888 | AH174: 0.0524
A175: 0.72 | B175: 2.05443 | C175: 1.72000 | D175: -0.33443 | E175: 0.33443 | F175: 0.1118 | H175: 0.72 | I175: 2.05443 | J175: 1.97920 | K175: -0.07523 | L175: 0.07523 | M175: 0.0057 | O175: 0.72 | P175: 2.05443 | Q175: 2.04265 | R175: -0.01178 | S175: 0.01178 | T175: 0.0001 | V175: 0.72 | W175: 2.05443 | X175: 2.05340 | Y175: -0.00103 | Z175: 0.00103 | AA175: 0.0000 | AC175: 0.72 | AD175: 2.05443 | AE175: 2.29480 | AF175: 0.24037 | AG175: 0.24037 | AH175: 0.0578
A176: 0.73 | B176: 2.07508 | C176: 1.73000 | D176: -0.34508 | E176: 0.34508 | F176: 0.1191 | H176: 0.73 | I176: 2.07508 | J176: 1.99645 | K176: -0.07863 | L176: 0.07863 | M176: 0.0062 | O176: 0.73 | P176: 2.07508 | Q176: 2.06258 | R176: -0.01250 | S176: 0.01250 | T176: 0.0002 | V176: 0.73 | W176: 2.07508 | X176: 2.07394 | Y176: -0.00114 | Z176: 0.00114 | AA176: 0.0000 | AC176: 0.73 | AD176: 2.07508 | AE176: 2.32735 | AF176: 0.25227 | AG176: 0.25227 | AH176: 0.0636
A177: 0.74 | B177: 2.09594 | C177: 1.74000 | D177: -0.35594 | E177: 0.35594 | F177: 0.1267 | H177: 0.74 | I177: 2.09594 | J177: 2.01380 | K177: -0.08214 | L177: 0.08214 | M177: 0.0067 | O177: 0.74 | P177: 2.09594 | Q177: 2.08269 | R177: -0.01325 | S177: 0.01325 | T177: 0.0002 | V177: 0.74 | W177: 2.09594 | X177: 2.09468 | Y177: -0.00125 | Z177: 0.00125 | AA177: 0.0000 | AC177: 0.74 | AD177: 2.09594 | AE177: 2.36054 | AF177: 0.26461 | AG177: 0.26461 | AH177: 0.0700
A178: 0.75 | B178: 2.11700 | C178: 1.75000 | D178: -0.36700 | E178: 0.36700 | F178: 0.1347 | H178: 0.75 | I178: 2.11700 | J178: 2.03125 | K178: -0.08575 | L178: 0.08575 | M178: 0.0074 | O178: 0.75 | P178: 2.11700 | Q178: 2.10297 | R178: -0.01403 | S178: 0.01403 | T178: 0.0002 | V178: 0.75 | W178: 2.11700 | X178: 2.11563 | Y178: -0.00138 | Z178: 0.00138 | AA178: 0.0000 | AC178: 0.75 | AD178: 2.11700 | AE178: 2.39438 | AF178: 0.27738 | AG178: 0.27738 | AH178: 0.0769
A179: 0.76 | B179: 2.13828 | C179: 1.76000 | D179: -0.37828 | E179: 0.37828 | F179: 0.1431 | H179: 0.76 | I179: 2.13828 | J179: 2.04880 | K179: -0.08948 | L179: 0.08948 | M179: 0.0080 | O179: 0.76 | P179: 2.13828 | Q179: 2.12343 | R179: -0.01485 | S179: 0.01485 | T179: 0.0002 | V179: 0.76 | W179: 2.13828 | X179: 2.13677 | Y179: -0.00151 | Z179: 0.00151 | AA179: 0.0000 | AC179: 0.76 | AD179: 2.13828 | AE179: 2.42887 | AF179: 0.29060 | AG179: 0.29060 | AH179: 0.0844
A180: 0.77 | B180: 2.15977 | C180: 1.77000 | D180: -0.38977 | E180: 0.38977 | F180: 0.1519 | H180: 0.77 | I180: 2.15977 | J180: 2.06645 | K180: -0.09332 | L180: 0.09332 | M180: 0.0087 | O180: 0.77 | P180: 2.15977 | Q180: 2.14406 | R180: -0.01571 | S180: 0.01571 | T180: 0.0002 | V180: 0.77 | W180: 2.15977 | X180: 2.15812 | Y180: -0.00164 | Z180: 0.00164 | AA180: 0.0000 | AC180: 0.77 | AD180: 2.15977 | AE180: 2.46404 | AF180: 0.30428 | AG180: 0.30428 | AH180: 0.0926
A181: 0.78 | B181: 2.18147 | C181: 1.78000 | D181: -0.40147 | E181: 0.40147 | F181: 0.1612 | H181: 0.78 | I181: 2.18147 | J181: 2.08420 | K181: -0.09727 | L181: 0.09727 | M181: 0.0095 | O181: 0.78 | P181: 2.18147 | Q181: 2.16487 | R181: -0.01660 | S181: 0.01660 | T181: 0.0003 | V181: 0.78 | W181: 2.18147 | X181: 2.17968 | Y181: -0.00179 | Z181: 0.00179 | AA181: 0.0000 | AC181: 0.78 | AD181: 2.18147 | AE181: 2.49989 | AF181: 0.31842 | AG181: 0.31842 | AH181: 0.1014
A182: 0.79 | B182: 2.20340 | C182: 1.79000 | D182: -0.41340 | E182: 0.41340 | F182: 0.1709 | H182: 0.79 | I182: 2.20340 | J182: 2.10205 | K182: -0.10135 | L182: 0.10135 | M182: 0.0103 | O182: 0.79 | P182: 2.20340 | Q182: 2.18587 | R182: -0.01753 | S182: 0.01753 | T182: 0.0003 | V182: 0.79 | W182: 2.20340 | X182: 2.20145 | Y182: -0.00195 | Z182: 0.00195 | AA182: 0.0000 | AC182: 0.79 | AD182: 2.20340 | AE182: 2.53644 | AF182: 0.33304 | AG182: 0.33304 | AH182: 0.1109
A183: 0.8 | B183: 2.22554 | C183: 1.80000 | D183: -0.42554 | E183: 0.42554 | F183: 0.1811 | H183: 0.8 | I183: 2.22554 | J183: 2.12000 | K183: -0.10554 | L183: 0.10554 | M183: 0.0111 | O183: 0.8 | P183: 2.22554 | Q183: 2.20704 | R183: -0.01850 | S183: 0.01850 | T183: 0.0003 | V183: 0.8 | W183: 2.22554 | X183: 2.22342 | Y183: -0.00212 | Z183: 0.00212 | AA183: 0.0000 | AC183: 0.8 | AD183: 2.22554 | AE183: 2.57369 | AF183: 0.34815 | AG183: 0.34815 | AH183: 0.1212
A184: 0.81 | B184: 2.24791 | C184: 1.81000 | D184: -0.43791 | E184: 0.43791 | F184: 0.1918 | H184: 0.81 | I184: 2.24791 | J184: 2.13805 | K184: -0.10986 | L184: 0.10986 | M184: 0.0121 | O184: 0.81 | P184: 2.24791 | Q184: 2.22839 | R184: -0.01951 | S184: 0.01951 | T184: 0.0004 | V184: 0.81 | W184: 2.24791 | X184: 2.24561 | Y184: -0.00229 | Z184: 0.00229 | AA184: 0.0000 | AC184: 0.81 | AD184: 2.24791 | AE184: 2.61167 | AF184: 0.36376 | AG184: 0.36376 | AH184: 0.1323
A185: 0.82 | B185: 2.27050 | C185: 1.82000 | D185: -0.45050 | E185: 0.45050 | F185: 0.2030 | H185: 0.82 | I185: 2.27050 | J185: 2.15620 | K185: -0.11430 | L185: 0.11430 | M185: 0.0131 | O185: 0.82 | P185: 2.27050 | Q185: 2.24993 | R185: -0.02057 | S185: 0.02057 | T185: 0.0004 | V185: 0.82 | W185: 2.27050 | X185: 2.26802 | Y185: -0.00248 | Z185: 0.00248 | AA185: 0.0000 | AC185: 0.82 | AD185: 2.27050 | AE185: 2.65038 | AF185: 0.37988 | AG185: 0.37988 | AH185: 0.1443
A186: 0.83 | B186: 2.29332 | C186: 1.83000 | D186: -0.46332 | E186: 0.46332 | F186: 0.2147 | H186: 0.83 | I186: 2.29332 | J186: 2.17445 | K186: -0.11887 | L186: 0.11887 | M186: 0.0141 | O186: 0.83 | P186: 2.29332 | Q186: 2.27165 | R186: -0.02166 | S186: 0.02166 | T186: 0.0005 | V186: 0.83 | W186: 2.29332 | X186: 2.29064 | Y186: -0.00268 | Z186: 0.00268 | AA186: 0.0000 | AC186: 0.83 | AD186: 2.29332 | AE186: 2.68984 | AF186: 0.39652 | AG186: 0.39652 | AH186: 0.1572
A187: 0.84 | B187: 2.31637 | C187: 1.84000 | D187: -0.47637 | E187: 0.47637 | F187: 0.2269 | H187: 0.84 | I187: 2.31637 | J187: 2.19280 | K187: -0.12357 | L187: 0.12357 | M187: 0.0153 | O187: 0.84 | P187: 2.31637 | Q187: 2.29356 | R187: -0.02281 | S187: 0.02281 | T187: 0.0005 | V187: 0.84 | W187: 2.31637 | X187: 2.31347 | Y187: -0.00289 | Z187: 0.00289 | AA187: 0.0000 | AC187: 0.84 | AD187: 2.31637 | AE187: 2.73005 | AF187: 0.41369 | AG187: 0.41369 | AH187: 0.1711
A188: 0.85 | B188: 2.33965 | C188: 1.85000 | D188: -0.48965 | E188: 0.48965 | F188: 0.2398 | H188: 0.85 | I188: 2.33965 | J188: 2.21125 | K188: -0.12840 | L188: 0.12840 | M188: 0.0165 | O188: 0.85 | P188: 2.33965 | Q188: 2.31565 | R188: -0.02400 | S188: 0.02400 | T188: 0.0006 | V188: 0.85 | W188: 2.33965 | X188: 2.33653 | Y188: -0.00312 | Z188: 0.00312 | AA188: 0.0000 | AC188: 0.85 | AD188: 2.33965 | AE188: 2.77104 | AF188: 0.43140 | AG188: 0.43140 | AH188: 0.1861
A189: 0.86 | B189: 2.36316 | C189: 1.86000 | D189: -0.50316 | E189: 0.50316 | F189: 0.2532 | H189: 0.86 | I189: 2.36316 | J189: 2.22980 | K189: -0.13336 | L189: 0.13336 | M189: 0.0178 | O189: 0.86 | P189: 2.36316 | Q189: 2.33793 | R189: -0.02523 | S189: 0.02523 | T189: 0.0006 | V189: 0.86 | W189: 2.36316 | X189: 2.35981 | Y189: -0.00335 | Z189: 0.00335 | AA189: 0.0000 | AC189: 0.86 | AD189: 2.36316 | AE189: 2.81282 | AF189: 0.44966 | AG189: 0.44966 | AH189: 0.2022
A190: 0.87 | B190: 2.38691 | C190: 1.87000 | D190: -0.51691 | E190: 0.51691 | F190: 0.2672 | H190: 0.87 | I190: 2.38691 | J190: 2.24845 | K190: -0.13846 | L190: 0.13846 | M190: 0.0192 | O190: 0.87 | P190: 2.38691 | Q190: 2.36040 | R190: -0.02652 | S190: 0.02652 | T190: 0.0007 | V190: 0.87 | W190: 2.38691 | X190: 2.38331 | Y190: -0.00360 | Z190: 0.00360 | AA190: 0.0000 | AC190: 0.87 | AD190: 2.38691 | AE190: 2.85540 | AF190: 0.46848 | AG190: 0.46848 | AH190: 0.2195
A191: 0.88 | B191: 2.41090 | C191: 1.88000 | D191: -0.53090 | E191: 0.53090 | F191: 0.2819 | H191: 0.88 | I191: 2.41090 | J191: 2.26720 | K191: -0.14370 | L191: 0.14370 | M191: 0.0206 | O191: 0.88 | P191: 2.41090 | Q191: 2.38305 | R191: -0.02785 | S191: 0.02785 | T191: 0.0008 | V191: 0.88 | W191: 2.41090 | X191: 2.40704 | Y191: -0.00386 | Z191: 0.00386 | AA191: 0.0000 | AC191: 0.88 | AD191: 2.41090 | AE191: 2.89878 | AF191: 0.48789 | AG191: 0.48789 | AH191: 0.2380
A192: 0.89 | B192: 2.43513 | C192: 1.89000 | D192: -0.54513 | E192: 0.54513 | F192: 0.2972 | H192: 0.89 | I192: 2.43513 | J192: 2.28605 | K192: -0.14908 | L192: 0.14908 | M192: 0.0222 | O192: 0.89 | P192: 2.43513 | Q192: 2.40589 | R192: -0.02923 | S192: 0.02923 | T192: 0.0009 | V192: 0.89 | W192: 2.43513 | X192: 2.43099 | Y192: -0.00414 | Z192: 0.00414 | AA192: 0.0000 | AC192: 0.89 | AD192: 2.43513 | AE192: 2.94300 | AF192: 0.50787 | AG192: 0.50787 | AH192: 0.2579
A193: 0.9 | B193: 2.45960 | C193: 1.90000 | D193: -0.55960 | E193: 0.55960 | F193: 0.3132 | H193: 0.9 | I193: 2.45960 | J193: 2.30500 | K193: -0.15460 | L193: 0.15460 | M193: 0.0239 | O193: 0.9 | P193: 2.45960 | Q193: 2.42893 | R193: -0.03067 | S193: 0.03067 | T193: 0.0009 | V193: 0.9 | W193: 2.45960 | X193: 2.45517 | Y193: -0.00443 | Z193: 0.00443 | AA193: 0.0000 | AC193: 0.9 | AD193: 2.45960 | AE193: 2.98806 | AF193: 0.52846 | AG193: 0.52846 | AH193: 0.2793
A194: 0.91 | B194: 2.48432 | C194: 1.91000 | D194: -0.57432 | E194: 0.57432 | F194: 0.3298 | H194: 0.91 | I194: 2.48432 | J194: 2.32405 | K194: -0.16027 | L194: 0.16027 | M194: 0.0257 | O194: 0.91 | P194: 2.48432 | Q194: 2.45216 | R194: -0.03217 | S194: 0.03217 | T194: 0.0010 | V194: 0.91 | W194: 2.48432 | X194: 2.47959 | Y194: -0.00474 | Z194: 0.00474 | AA194: 0.0000 | AC194: 0.91 | AD194: 2.48432 | AE194: 3.03397 | AF194: 0.54965 | AG194: 0.54965 | AH194: 0.3021
A195: 0.92 | B195: 2.50929 | C195: =aa00+bb00*A195 -> 1.92000 | D195: -0.58929 | E195: 0.58929 | F195: 0.3473 | H195: 0.92 | I195: 2.50929 | J195: =a0+b0*H195+c0*H195^2 -> 2.34320 | K195: -0.16609 | L195: 0.16609 | M195: 0.0276 | O195: 0.92 | P195: 2.50929 | Q195: =a00+b00*O195+c00*O195^2+d00*A195^3 -> 2.47558 | R195: -0.03371 | S195: 0.03371 | T195: 0.0011 | V195: 0.92 | W195: 2.50929 | X195: =a000+b000*V195+c000*V195^2+d000*O195^3+e000*O195^4 -> 2.50423 | Y195: -0.00506 | Z195: 0.00506 | AA195: 0.0000 | AC195: 0.92 | AD195: 2.50929 | AE195: =a0000+b0000*AC195+c0000*AC195^2+d0000*AC195^3+e0000*AC195^4+f0000*AC195^5 -> 3.08075 | AF195: 0.57146 | AG195: 0.57146 | AH195: 0.3266
A196: =A195+(bb0-aa0)/200 -> 0.93 | B196: =EXP(A196) -> 2.53451 | C196: 1.93000 | D196: =C196-B196 -> -0.60451 | E196: =ABS(D196) -> 0.60451 | F196: =D196^2 -> 0.3654 | H196: =H195+(b-a)/200 -> 0.93 | I196: =EXP(H196) -> 2.53451 | J196: 2.36245 | K196: =J196-I196 -> -0.17206 | L196: =ABS(K196) -> 0.17206 | M196: =K196^2 -> 0.0296 | O196: =O195+(bb-aa)/200 -> 0.93 | P196: =EXP(O196) -> 2.53451 | Q196: 2.49919 | R196: =Q196-P196 -> -0.03532 | S196: =ABS(R196) -> 0.03532 | T196: =R196^2 -> 0.0012 | V196: =V195+(bbb-aaa)/200 -> 0.93 | W196: =EXP(V196) -> 2.53451 | X196: 2.52911 | Y196: =X196-W196 -> -0.00540 | Z196: =ABS(Y196) -> 0.00540 | AA196: =Y196^2 -> 0.0000 | AC196: =AC195+(bbbb-aaaa)/200 -> 0.93 | AD196: =EXP(AC196) -> 2.53451 | AE196: 3.12841 | AF196: =AE196-AD196 -> 0.59391 | AG196: =ABS(AF196) -> 0.59391 | AH196: =AF196^2 -> 0.3527
A197: 0.94 | B197: 2.55998 | C197: 1.94000 | D197: -0.61998 | E197: 0.61998 | F197: 0.3844 | H197: 0.94 | I197: 2.55998 | J197: 2.38180 | K197: -0.17818 | L197: 0.17818 | M197: 0.0317 | O197: 0.94 | P197: 2.55998 | Q197: 2.52300 | R197: -0.03698 | S197: 0.03698 | T197: 0.0014 | V197: 0.94 | W197: 2.55998 | X197: 2.55423 | Y197: -0.00575 | Z197: 0.00575 | AA197: 0.0000 | AC197: 0.94 | AD197: 2.55998 | AE197: 3.17698 | AF197: 0.61699 | AG197: 0.61699 | AH197: 0.3807
A198: 0.95 | B198: 2.58571 | C198: 1.95000 | D198: -0.63571 | E198: 0.63571 | F198: 0.4041 | H198: 0.95 | I198: 2.58571 | J198: 2.40125 | K198: -0.18446 | L198: 0.18446 | M198: 0.0340 | O198: 0.95 | P198: 2.58571 | Q198: 2.54700 | R198: -0.03871 | S198: 0.03871 | T198: 0.0015 | V198: 0.95 | W198: 2.58571 | X198: 2.57958 | Y198: -0.00613 | Z198: 0.00613 | AA198: 0.0000 | AC198: 0.95 | AD198: 2.58571 | AE198: 3.22645 | AF198: 0.64074 | AG198: 0.64074 | AH198: 0.4105
A199: 0.96 | B199: 2.61170 | C199: 1.96000 | D199: -0.65170 | E199: 0.65170 | F199: 0.4247 | H199: 0.96 | I199: 2.61170 | J199: 2.42080 | K199: -0.19090 | L199: 0.19090 | M199: 0.0364 | O199: 0.96 | P199: 2.61170 | Q199: 2.57121 | R199: -0.04049 | S199: 0.04049 | T199: 0.0016 | V199: 0.96 | W199: 2.61170 | X199: 2.60518 | Y199: -0.00652 | Z199: 0.00652 | AA199: 0.0000 | AC199: 0.96 | AD199: 2.61170 | AE199: 3.27685 | AF199: 0.66515 | AG199: 0.66515 | AH199: 0.4424
A200: 0.97 | B200: 2.63794 | C200: 1.97000 | D200: -0.66794 | E200: 0.66794 | F200: 0.4461 | H200: 0.97 | I200: 2.63794 | J200: 2.44045 | K200: -0.19749 | L200: 0.19749 | M200: 0.0390 | O200: 0.97 | P200: 2.63794 | Q200: 2.59560 | R200: -0.04234 | S200: 0.04234 | T200: 0.0018 | V200: 0.97 | W200: 2.63794 | X200: 2.63102 | Y200: -0.00693 | Z200: 0.00693 | AA200: 0.0000 | AC200: 0.97 | AD200: 2.63794 | AE200: 3.32819 | AF200: 0.69024 | AG200: 0.69024 | AH200: 0.4764
... 4 more rows
